{"text_format":"1","workbook":"xlsx","n_sheets":29,"sheets":["Risk","Crop","Log_TPL","Pests","Lists","Costs","Logos","Pest_Report","WGRCG","WGRFPN","WABCL","WPYNS","ISWD","IGM","WGRFXT","WPBRMG","WABDK","WPD","WPSMX","DMB","DSLS","DBSB","DPHYRR","IBBMG","WABMG","WABPW","WABRW","WPTRSAP","ISNSS"],"not_rendered":{"charts":3,"images":4,"macros":1,"external_links":0,"defined_names":231,"comments":0,"pivot_tables":0},"unopened":[],"bounds":{"document_bytes":16777216,"sheet_cells":100000,"rows_first":2000,"rows_last":500,"rows_between":2000,"halvings":0,"cell_chars":16384,"cell_head_chars":4096},"cells_cut":0,"cells_raw":0,"read":"whole","date_system":"1900"}

{"sheet":"Risk","index":0,"n_rows":51,"n_cols":21,"rows_kept":51,"cut":false,"hidden":false,"merged":[[2,17,2,20],[7,17,7,20],[29,6,31,20],[12,6,12,7],[12,9,12,12],[12,13,12,16],[12,17,12,20],[18,6,18,7],[18,9,18,12],[18,13,18,16],[18,17,18,20],[22,6,22,7],[22,9,22,12],[22,13,22,16],[22,17,22,20],[7,6,7,7],[7,13,7,16],[1,5,1,6],[2,6,2,7],[2,9,2,12],[2,13,2,16],[7,9,7,12]]}
[]
[]
[null,null,null,"Crop",null,null,"Diseases",null,"Index","Low",null,null,null,"Med",null,null,null,"High"]
[null,null,null,"Age","1 to 3 years",null,null,"Botryosphaeria Stem Blight",{"$f":"DBSB_RiskIndex","v":80},80,80,80,80,80,80,80,80,80,80,80,80]
[null,null,null,"Type","Rabbiteye",null,null,"Mummy Berry",{"$f":"DMB_RiskIndex","v":55},55,55,55,55,55,55,55,55,55,55,55,55]
[null,null,null,"Crop Practices",null,null,null,"Phytophthora Root Rot",{"$f":"DPHYRR_RiskIndex","v":75},75,75,75,75,75,75,75,75,75,75,75,75]
[null,null,null,"Infected Fruit Handling","Left in field",null,null,"Septoria Leaf Spot",{"$f":"DSLS_RiskIndex","v":80},80,80,80,80,80,80,80,80,80,80,80,80]
[null,null,null,"Pruning","Summer hedge",null,"Insects",null,"Index","Low",null,null,null,"Med",null,null,null,"High"]
[null,null,null,"Field",null,null,null,"Blueberry Maggot",{"$f":"IBBMG_RiskIndex","v":50},50,50,50,50,50,50,50,50,50,50,50,50]
[null,null,null,"Prior Land Use","Turf",null,null,"Gall Midge",{"$f":"IGM_RiskIndex","v":35},35,35,35,35,35,35,35,35,35,35,35,35]
[null,null,null,"Soil Drainage","Poor",null,null,"Sharpnose Sharpshooter",{"$f":"ISNSS_RiskIndex","v":25},25,25,25,25,25,25,25,25,25,25,25,25]
[null,null,null,"Soil Texture","Clay",null,null,"Spotted Wing Drosophila",{"$f":"ISWD_RiskIndex","v":50},50,50,50,50,50,50,50,50,50,50,50,50]
[null,null,null,"Weed Presence","High",null,"Weeds (Annual Broadleaves)",null,"Index","Low",null,null,null,"Med",null,null,null,"High"]
[null,null,null,"Field Practices",null,null,null,"Common Lambsquarters",{"$f":"WABCL_RiskIndex","v":90},90,90,90,90,90,90,90,90,90,90,90,90]
[null,null,null,"Bed Type","Bare",null,null,"Dock",{"$f":"WABDK_RiskIndex","v":90},90,90,90,90,90,90,90,90,90,90,90,90]
[null,null,null,"In Row","Weedy",null,null,"Morningglory",{"$f":"WABMG_RiskIndex","v":95},95,95,95,95,95,95,95,95,95,95,95,95]
[null,null,null,"Irrigation","Overhead",null,null,"Pigweed",{"$f":"WABPW_RiskIndex","v":100},100,100,100,100,100,100,100,100,100,100,100,100]
[null,null,null,"Row Middles","Weedy",null,null,"Ragweed",{"$f":"WABRW_RiskIndex","v":100},100,100,100,100,100,100,100,100,100,100,100,100]
[null,null,null,"Pest History Diseases",null,null,"Weeds (Annual Grasses)",null,"Index","Low",null,null,null,"Med",null,null,null,"High"]
[null,null,null,"Botryosphaeria Stem Blight","Within last 2 years",null,null,"Crabgrass",{"$f":"WGRCG_RiskIndex","v":100},100,100,100,100,100,100,100,100,100,100,100,100]
[null,null,null,"Mummy Berry","Within last 2 years",null,null,"Fall Panicum",{"$f":"WGRFPN_RiskIndex","v":90},90,90,90,90,90,90,90,90,90,90,90,90]
[null,null,null,"Phytophthora Root Rot","Within last 2 years",null,null,"Foxtail",{"$f":"WGRFXT_RiskIndex","v":90},90,90,90,90,90,90,90,90,90,90,90,90]
[null,null,null,"Septoria Leaf Spot","Within last 2 years",null,"Weeds (Perennials)",null,"Index","Low",null,null,null,"Med",null,null,null,"High"]
[null,null,null,"Pest History Insects",null,null,null,"Bermudagrass",{"$f":"WPBRMG_RiskIndex","v":105},105,105,105,105,105,105,105,105,105,105,105,105]
[null,null,null,"Blueberry Maggot","Within last 2 years",null,null,"Dandelion",{"$f":"WPD_RiskIndex","v":95},95,95,95,95,95,95,95,95,95,95,95,95]
[null,null,null,"Gall Midge","Within last 2 years",null,null,"Smilax",{"$f":"WPSMX_RiskIndex","v":75},75,75,75,75,75,75,75,75,75,75,75,75]
[null,null,null,"Sharpnose Sharpshooter","Within last 2 years",null,null,"Tree Saplings",{"$f":"WPTRSAP_RiskIndex","v":75},75,75,75,75,75,75,75,75,75,75,75,75]
[null,null,null,"Spotted Wing Drosophila","Within last 2 years",null,null,"Yellow Nutsedge",{"$f":"WPYNS_RiskIndex","v":100},100,100,100,100,100,100,100,100,100,100,100,100]
[null,null,null,"Pest Management Chemical"]
[null,null,null,"Fumigation","No",null,"Red Dots - Change practices to eliminate.\r\nYellow Dots - Consider adjusting practices to reduce risk.\r\nGreen Dots - Risk is acceptable for selected practices."]
[null,null,null,"Fungicides","None"]
[null,null,null,"Insecticides","None"]
[null,null,null,"Pest Management Traps"]
[null,null,null,"Blueberry Maggot Fly","Not used"]
[null,null,null,"Spotted Wing Drosophila","Not used"]
[null,null,null,"Weed History"]
[null,null,null,"Bermudagrass","Within last 2 years"]
[null,null,null,"Common Lambsquarter","Within last 2 years"]
[null,null,null,"Crabgrass","Within last 2 years"]
[null,null,null,"Dandelion","Within last 2 years"]
[null,null,null,"Dock","Within last 2 years"]
[null,null,null,"Fall Panicum","Within last 2 years"]
[null,null,null,"Foxtail","Within last 2 years"]
[null,null,null,"Morningglory","Within last 2 years"]
[null,null,null,"Pigweed","Within last 2 years"]
[null,null,null,"Ragweed","Within last 2 years"]
[null,null,null,"Smilax","Within last 2 years"]
[null,null,null,"Tree Saplings","Within last 2 years"]
[null,null,null,"Yellow Nutsedge","Within last 2 years"]
[null,null,null,"Weed Management"]
[null,null,null,"Herbicide Applications","None"]

{"sheet":"Crop","index":1,"n_rows":15,"n_cols":5,"rows_kept":15,"cut":false,"hidden":true,"merged":[[12,1,12,4],[13,1,13,4],[14,1,14,4],[15,1,15,4],[6,1,6,4],[7,1,7,4],[8,1,8,4],[9,1,9,4],[10,1,10,4],[11,1,11,4]]}
["Crop","Blueberry"]
[]
["Planting Season","Date","Month","Day of Month","Day of Year"]
["Start","2021-05-15",{"$f":"MONTH(B4)","v":5},{"$f":"DAY(B4)","v":15},{"$f":"B4-DATE(YEAR(B4),1,1)+1","v":135}]
["End","2021-07-15",{"$f":"MONTH(B5)","v":7},{"$f":"DAY(B5)","v":15},{"$f":"B5-DATE(YEAR(B5),1,1)+1","v":196}]
[]
["Title","Blueberry Risk Tool - NC"]
["Subtitle"]
["Credit Lines","Kira Sims and Katie Jennings"]
[null,"Department of Horticultural Science"]
[]
[null,"David Jordan and Greg Buol"]
[null,"Department of Crop and Soil Sciences"]
[]
[null,"North Carolina State University, Raleigh NC"]

{"sheet":"Log_TPL","index":2,"n_rows":193,"n_cols":21,"rows_kept":193,"cut":false,"hidden":true,"merged":[[59,5,59,9],[58,5,58,9],[19,5,19,14],[0,0,0,14],[48,5,48,9],[49,5,49,9],[50,5,50,9]]}
["Field and Production Information"]
[null,null,null,null,null,null,null,null,null,null,null,null,null,null,null,null,null,null,"Input Selection Lists"]
[null,null,null,"Crop",{"$f":"Crop","v":"Blueberry"},null,null,null,null,null,null,null,null,null,null,null,null,null,"Tillage_Pracs","Control_Rating","Weed_Mgmt"]
[null,null,null,"Variety"]
[null,null,null,null,null,null,null,null,null,null,null,null,null,null,null,null,null,null,"Bed","No Control (<5%)","Chemical"]
[null,null,null,"Field Area (A)",null,null,null,null,null,null,null,null,null,null,null,null,null,null,"Chisel","Poor (5% to 20%)","Mowing"]
[null,null,null,null,null,null,null,null,null,null,null,null,null,null,null,null,null,null,"Cultivate","Low (20% to 50%)","Hand Weeding"]
[null,null,null,"Soil ","Mapped Series","% of Field",null,null,null,null,null,null,null,null,null,null,null,null,"Disk","Moderate (50% to 80%)"]
[null,null,null,null,null,null,null,null,null,null,null,null,null,null,null,null,null,null,"Moldboard Plow","High (80% to 90%)"]
[null,null,null,null,null,null,null,null,null,null,null,null,null,null,null,null,null,null,"No Till","Excellent (90% to 100%)"]
[null,null,null,null,null,null,null,null,null,null,null,null,null,null,null,null,null,null,"Other"]
[null,null,null,null,null,null,null,null,null,null,null,null,null,null,null,null,null,null,"Rip"]
[null,null,null,null,null,null,null,null,null,null,null,null,null,null,null,null,null,null,"Rip and Bed"]
[null,null,null,null,null,null,null,null,null,null,null,null,null,null,null,null,null,null,"Strip Till"]
[null,null,null,"Lime Applications","Date","Rate (lbs/A)"]
[null,null,null,"Current Year"]
[null,null,null,"Last Year"]
[]
[null,null,null,"Fertilizer","Date","N","P2O5","K2O","B","Cu","Fe","Mn","Mo","S","Zn"]
[null,null,null,null,null,"lbs/A"]
[]
[]
[]
[]
[]
[]
[null,null,null,"Weed Control","Date","Weeds","Weed Size","Method","Trade Name","Rate","Trade Name","Rate","Trade Name","Rate","Trade Name","Rate","Evaluation Date","Control Rating"]
[]
[]
[]
[]
[]
[]
[]
[]
[]
[]
[]
[null,null,null,"Pest Treaments","Date","Pest","Severity","Trade Name","Rate","Trade Name","Rate","Evaluation Date","Control Rating"]
[]
[]
[]
[]
[]
[]
[]
[]
[null,null,null,"Development Dates","Date","Crop Status"]
[null,null,null,"Green Tip"]
[null,null,null,"Visible Flower Buds"]
[null,null,null,"First Open Flowers"]
[null,null,null,"Fruit Formation"]
[null,null,null,"Last Open Flower"]
[null,null,null,"Fruit Coloring"]
[null,null,null,"First Fruit Harvest"]
[null,null,null,"Last Fruit Harvest"]
[]
[null,null,null,"Pruning","Date","Crop Status"]
[]
[]
[]
[null,null,null,"Weeds at Harvest"]
[]
[]
[]
[]
[]
[]
[]
[]
[null,null,null,"Yield","Date","lb/ac","Price ($/lb)","Gross Profit ($/ac)"]
[null,null,null,"Harvest 1",null,null,null,{"$f":"F72*G72","v":0}]
[null,null,null,"Harvest 2",null,null,null,{"$f":"F73*G73","v":0}]
[null,null,null,"Harvest 3",null,null,null,0]
[null,null,null,"Harvest 4",null,null,null,0]
[null,null,null,"Harvest 5",null,null,null,0]
[null,null,null,"Harvest 6",null,null,null,0]
[null,null,null,"Harvest 7",null,null,null,0]
[null,null,null,"Harvest 8",null,null,null,0]
[null,null,null,"Harvest 9",null,null,null,0]
[null,null,null,"Harvest 10",null,null,null,0]
[null,null,null,"Harvest 11",null,null,null,0]
[null,null,null,"Harvest 12",null,null,null,0]
[null,null,null,"Harvest 13",null,null,null,0]
[null,null,null,"Harvest 14",null,null,null,0]
[null,null,null,"Harvest 15",null,null,null,0]
[null,null,null,"Harvest 16",null,null,null,0]
[null,null,null,"Harvest 17",null,null,null,0]
[null,null,null,"Harvest 18",null,null,null,0]
[null,null,null,"Harvest 19",null,null,null,0]
[null,null,null,"Harvest 20",null,null,null,0]
[]
[null,null,null,"Rainfall/Irrigation","Date","Amount (in)","Month",null,"Month","Amount (in)"]
[null,null,null,null,null,null,{"$f":"IF(ISBLANK(E94),\"\",TEXT(E94,\"mmm\"))","v":""},null,"Jan",{"$f":"SUMIF(G$94:G$193,\"=\" & I94,F$94:F$193)","v":0}]
[null,null,null,null,null,null,{"$f":"IF(ISBLANK(E95),\"\",TEXT(E95,\"mmm\"))","v":""},null,"Feb",{"$f":"SUMIF(G$94:G$193,\"=\" & I95,F$94:F$193)","v":0}]
[null,null,null,null,null,null,"",null,"Mar",0]
[null,null,null,null,null,null,"",null,"Apr",0]
[null,null,null,null,null,null,"",null,"May",0]
[null,null,null,null,null,null,"",null,"Jun",0]
[null,null,null,null,null,null,"",null,"Jul",0]
[null,null,null,null,null,null,"",null,"Aug",0]
[null,null,null,null,null,null,"",null,"Sep",0]
[null,null,null,null,null,null,"",null,"Oct",0]
[null,null,null,null,null,null,"",null,"Nov",0]
[null,null,null,null,null,null,"",null,"Dec",0]
[null,null,null,null,null,null,""]
[null,null,null,null,null,null,""]
[null,null,null,null,null,null,""]
[null,null,null,null,null,null,""]
[null,null,null,null,null,null,""]
[null,null,null,null,null,null,""]
[null,null,null,null,null,null,""]
[null,null,null,null,null,null,""]
[null,null,null,null,null,null,""]
[null,null,null,null,null,null,""]
[null,null,null,null,null,null,""]
[null,null,null,null,null,null,""]
[null,null,null,null,null,null,""]
[null,null,null,null,null,null,""]
[null,null,null,null,null,null,""]
[null,null,null,null,null,null,""]
[null,null,null,null,null,null,""]
[null,null,null,null,null,null,""]
[null,null,null,null,null,null,""]
[null,null,null,null,null,null,""]
[null,null,null,null,null,null,""]
[null,null,null,null,null,null,""]
[null,null,null,null,null,null,""]
[null,null,null,null,null,null,""]
[null,null,null,null,null,null,""]
[null,null,null,null,null,null,""]
[null,null,null,null,null,null,""]
[null,null,null,null,null,null,""]
[null,null,null,null,null,null,""]
[null,null,null,null,null,null,""]
[null,null,null,null,null,null,""]
[null,null,null,null,null,null,""]
[null,null,null,null,null,null,""]
[null,null,null,null,null,null,""]
[null,null,null,null,null,null,""]
[null,null,null,null,null,null,""]
[null,null,null,null,null,null,""]
[null,null,null,null,null,null,""]
[null,null,null,null,null,null,""]
[null,null,null,null,null,null,""]
[null,null,null,null,null,null,""]
[null,null,null,null,null,null,""]
[null,null,null,null,null,null,""]
[null,null,null,null,null,null,""]
[null,null,null,null,null,null,""]
[null,null,null,null,null,null,""]
[null,null,null,null,null,null,""]
[null,null,null,null,null,null,""]
[null,null,null,null,null,null,""]
[null,null,null,null,null,null,""]
[null,null,null,null,null,null,""]
[null,null,null,null,null,null,""]
[null,null,null,null,null,null,""]
[null,null,null,null,null,null,{"$f":"IF(ISBLANK(E159),\"\",TEXT(E159,\"mmm\"))","v":""}]
[null,null,null,null,null,null,""]
[null,null,null,null,null,null,""]
[null,null,null,null,null,null,""]
[null,null,null,null,null,null,""]
[null,null,null,null,null,null,""]
[null,null,null,null,null,null,""]
[null,null,null,null,null,null,""]
[null,null,null,null,null,null,""]
[null,null,null,null,null,null,""]
[null,null,null,null,null,null,""]
[null,null,null,null,null,null,""]
[null,null,null,null,null,null,""]
[null,null,null,null,null,null,""]
[null,null,null,null,null,null,""]
[null,null,null,null,null,null,""]
[null,null,null,null,null,null,""]
[null,null,null,null,null,null,""]
[null,null,null,null,null,null,""]
[null,null,null,null,null,null,""]
[null,null,null,null,null,null,""]
[null,null,null,null,null,null,""]
[null,null,null,null,null,null,""]
[null,null,null,null,null,null,""]
[null,null,null,null,null,null,""]
[null,null,null,null,null,null,""]
[null,null,null,null,null,null,""]
[null,null,null,null,null,null,""]
[null,null,null,null,null,null,""]
[null,null,null,null,null,null,""]
[null,null,null,null,null,null,""]
[null,null,null,null,null,null,""]
[null,null,null,null,null,null,""]
[null,null,null,null,null,null,""]
[null,null,null,null,null,null,""]

{"sheet":"Pests","index":3,"n_rows":22,"n_cols":3,"rows_kept":22,"cut":false,"hidden":true,"merged":[]}
["PestType","Pest","PestID"]
["Diseases","Botryosphaeria Stem Blight","DBSB"]
["Diseases","Mummy Berry","DMB"]
["Diseases","Phytophthora Root Rot","DPHYRR"]
["Diseases","Septoria Leaf Spot","DSLS"]
["Insects","Blueberry Maggot","IBBMG"]
["Insects","Gall Midge","IGM"]
["Insects","Sharpnose Sharpshooter","ISNSS"]
["Insects","Spotted Wing Drosophila","ISWD"]
["Weeds (Annual Broadleaves)","Common Lambsquarters","WABCL"]
["Weeds (Annual Broadleaves)","Dock","WABDK"]
["Weeds (Annual Broadleaves)","Morningglory","WABMG"]
["Weeds (Annual Broadleaves)","Pigweed","WABPW"]
["Weeds (Annual Broadleaves)","Ragweed","WABRW"]
["Weeds (Annual Grasses)","Crabgrass","WGRCG"]
["Weeds (Annual Grasses)","Fall Panicum","WGRFPN"]
["Weeds (Annual Grasses)","Foxtail","WGRFXT"]
["Weeds (Perennials)","Bermudagrass","WPBRMG"]
["Weeds (Perennials)","Dandelion","WPD"]
["Weeds (Perennials)","Smilax","WPSMX"]
["Weeds (Perennials)","Tree Saplings","WPTRSAP"]
["Weeds (Perennials)","Yellow Nutsedge","WPYNS"]

{"sheet":"Lists","index":4,"n_rows":40,"n_cols":46,"rows_kept":40,"cut":false,"hidden":true,"merged":[]}
["Category","Category_Pest","CategoryID","Category_List","Category_List_Type","Months","Land_Area_Units","Weed_Management\\Herbicide_Applications","Field_Practices\\Row_Middles","Weed_History\\Common_Lambsquarter","Weed_History\\Crabgrass","Weed_History\\Dandelion","Field\\Prior_Land_Use","Field\\Soil_Drainage","Field\\Weed_Presence","Crop\\Age","Crop\\Type","Field_Practices\\Irrigation","Crop_Practices\\Pruning","Field_Practices\\In_Row","Field_Practices\\Bed_Type","Weed_History\\Fall_Panicum","Weed_History\\Dock","Weed_History\\Morningglory","Weed_History\\Pigweed","Weed_History\\Ragweed","Weed_History\\Foxtail","Weed_History\\Yellow_Nutsedge","Weed_History\\Smilax","Weed_History\\Bermudagrass","Weed_History\\Tree_Saplings","Pest_Management_Chemical\\Fungicides","Pest_Management_Chemical\\Insecticides","Pest_Management_Traps\\Blueberry_Maggot_Fly","Pest_Management_Traps\\Spotted_Wing_Drosophila","Pest_History_Insects\\Blueberry_Maggot","Pest_History_Insects\\Gall_Midge","Pest_History_Diseases\\Phytophthora_Root_Rot","Pest_History_Insects\\Sharpnose_Sharpshooter","Pest_History_Insects\\Spotted_Wing_Drosophila","Field\\Soil_Texture","Pest_History_Diseases\\Botryosphaeria_Stem_Blight","Pest_History_Diseases\\Mummy_Berry","Pest_History_Diseases\\Septoria_Leaf_Spot","Pest_Management_Chemical\\Fumigation","Crop_Practices\\Infected_Fruit_Handling"]
["Crop\\Age",null,"Crop\\Age","Crop\\Age","Single","(01) January","ac","01|None","01|Weed-free","01|Never","01|Never","01|Never","01|Forest/fallow","01|Good","01|Low","01|1 to 3 years","01|Southern Highbush","01|None","01|Never","01|Weed-free","01|Bare","01|Never","01|Never","01|Never","01|Never","01|Never","01|Never","01|Never","01|Never","01|Never","01|Never","01|None","01|None","01|Not used","01|Not used","01|Never","01|Never","01|Never","01|Never","01|Never","01|Sandy","01|Never","01|Never","01|Never","01|No","01|Left in field"]
["Crop\\Type",null,"Crop\\Type","Crop\\Type","Single","(02) February","ha","02|1 recommended","02|Weedy","02|Within last 2 years","02|Within last 2 years","02|Within last 2 years","02|Cultivated","02|Moderate","02|Moderate","02|4 to 6 years","02|S. Highbush (cv. Star)","02|Drip","02|Summer hedge","02|Weedy","02|Bark/Mulch","02|Within last 2 years","02|Within last 2 years","02|Within last 2 years","02|Within last 2 years","02|Within last 2 years","02|Within last 2 years","02|Within last 2 years","02|Within last 2 years","02|Within last 2 years","02|Within last 2 years","02|1 recommended","02|1 to 2 recommended","02|Used","02|Used","02|Within last 2 years","02|Within last 2 years","02|Within last 2 years","02|Within last 2 years","02|Within last 2 years","02|Sandy loam","02|Within last 2 years","02|Within last 2 years","02|Within last 2 years","02|Yes","01|Removed from field"]
["Crop_Practices\\Infected_Fruit_Handling",null,"Crop_Practices\\Infected_Fruit_Handling","Crop_Practices\\Infected_Fruit_Handling","Single","(03) March",null,"03|2 recommended","03|Cover crop","03|Within last 2 to 5 years","03|Within 2 to 5 years","03|Within 2 to 5 years","03|Turf","03|Poor","03|High","03|7 years or older","03|Rabbiteye","03|Overhead","03|Winter hedge","03|Cover crop","03|Plastic/Fabric","03|Within 2 to 5 years","03|Within 2 to 5 years","03|Within 2 to 5 years","03|Within 2 to 5 years","03|Within 2 to 5 years","03|Within 2 to 5 years","03|Within 2 to 5 years","03|Within 3 to 5 years","03|Within 2 to 5 years","03|Within 2 to 5 years","03|2 to 3 recommended","03|3 to 4 recommended",null,null,"03|Within 2 to 5 years","03|Within 2 to 5 years","03|Within 2 to 3 yeares","03|Within 2 to 5 years","03|Within 2 to 5 years","03|Clay loam","03|Within 2 to 5 years","03|Within 2 to 5 years","03|Within 2 to 5 years"]
["Crop_Practices\\Pruning",null,"Crop_Practices\\Pruning","Crop_Practices\\Pruning","Single","(04) April",null,"04|3 recommended","04|Tilled","04|More than 5 years ago","04|More than 5 years ago","04|More than 5 years ago",null,null,null,null,null,null,"04|By hand",null,null,"04|More than 5 years ago","04|More than 5 years ago","04|More than 5 years ago","04|More than 5 years ago","04|More than 5 years ago","04|More than 5 years ago","04|More than 5 years ago","04|More than 5 years ago","04|More than 5 years ago","04|More than 5 years ago","04|4 to 5 recommended","04|5 or more recommended",null,null,"04|More than 5 years ago","04|More than 5 years ago","04|More than 5 years ago","04|More than 5 years ago","04|More than 5 years ago","04|Clay","04|More than 5 years ago","04|More than 5 years","04|More than 5 years"]
["Field\\Prior_Land_Use",null,"Field\\Prior_Land_Use","Field\\Prior_Land_Use","Single","(05) May",null,"05|4 or more recommended",null,null,null,null,null,null,null,null,null,null,null,null,null,null,null,null,null,null,null,null,null,null,null,"05|6 or more recommended"]
["Field\\Soil_Drainage",null,"Field\\Soil_Drainage","Field\\Soil_Drainage","Single","(06) June"]
["Field\\Soil_Texture",null,"Field\\Soil_Texture","Field\\Soil_Texture","Single","(07) July"]
["Field\\Weed_Presence",null,"Field\\Weed_Presence","Field\\Weed_Presence","Single","(08) August"]
["Field_Practices\\Bed_Type",null,"Field_Practices\\Bed_Type","Field_Practices\\Bed_Type","Single","(09) September"]
["Field_Practices\\In_Row",null,"Field_Practices\\In_Row","Field_Practices\\In_Row","Single","(10) October"]
["Field_Practices\\Irrigation",null,"Field_Practices\\Irrigation","Field_Practices\\Irrigation","Single","(11) November"]
["Field_Practices\\Row_Middles",null,"Field_Practices\\Row_Middles","Field_Practices\\Row_Middles","Single","(12) December"]
["Pest_History_Diseases\\Botryosphaeria_Stem_Blight",null,"Pest_History_Diseases\\Botryosphaeria_Stem_Blight","Pest_History_Diseases\\Botryosphaeria_Stem_Blight","Single"]
["Pest_History_Diseases\\Mummy_Berry",null,"Pest_History_Diseases\\Mummy_Berry","Pest_History_Diseases\\Mummy_Berry","Single"]
["Pest_History_Diseases\\Phytophthora_Root_Rot",null,"Pest_History_Diseases\\Phytophthora_Root_Rot","Pest_History_Diseases\\Phytophthora_Root_Rot","Single"]
["Pest_History_Diseases\\Septoria_Leaf_Spot",null,"Pest_History_Diseases\\Septoria_Leaf_Spot","Pest_History_Diseases\\Septoria_Leaf_Spot","Single"]
["Pest_History_Insects\\Blueberry_Maggot",null,"Pest_History_Insects\\Blueberry_Maggot","Pest_History_Insects\\Blueberry_Maggot","Single"]
["Pest_History_Insects\\Gall_Midge",null,"Pest_History_Insects\\Gall_Midge","Pest_History_Insects\\Gall_Midge","Single"]
["Pest_History_Insects\\Sharpnose_Sharpshooter",null,"Pest_History_Insects\\Sharpnose_Sharpshooter","Pest_History_Insects\\Sharpnose_Sharpshooter","Single"]
["Pest_History_Insects\\Spotted_Wing_Drosophila",null,"Pest_History_Insects\\Spotted_Wing_Drosophila","Pest_History_Insects\\Spotted_Wing_Drosophila","Single"]
["Pest_Management_Chemical\\Fumigation",null,"Pest_Management_Chemical\\Fumigation","Pest_Management_Chemical\\Fumigation","Single"]
["Pest_Management_Chemical\\Fungicides",null,"Pest_Management_Chemical\\Fungicides","Pest_Management_Chemical\\Fungicides","Single"]
["Pest_Management_Chemical\\Insecticides",null,"Pest_Management_Chemical\\Insecticides","Pest_Management_Chemical\\Insecticides","Single"]
["Pest_Management_Traps\\Blueberry_Maggot_Fly",null,"Pest_Management_Traps\\Blueberry_Maggot_Fly","Pest_Management_Traps\\Blueberry_Maggot_Fly","Single"]
["Pest_Management_Traps\\Spotted_Wing_Drosophila",null,"Pest_Management_Traps\\Spotted_Wing_Drosophila","Pest_Management_Traps\\Spotted_Wing_Drosophila","Single"]
["Weed_History\\Bermudagrass",null,"Weed_History\\Bermudagrass","Weed_History\\Bermudagrass","Single"]
["Weed_History\\Common_Lambsquarter",null,"Weed_History\\Common_Lambsquarter","Weed_History\\Common_Lambsquarter","Single"]
["Weed_History\\Crabgrass",null,"Weed_History\\Crabgrass","Weed_History\\Crabgrass","Single"]
["Weed_History\\Dandelion",null,"Weed_History\\Dandelion","Weed_History\\Dandelion","Single"]
["Weed_History\\Dock",null,"Weed_History\\Dock","Weed_History\\Dock","Single"]
["Weed_History\\Fall_Panicum",null,"Weed_History\\Fall_Panicum","Weed_History\\Fall_Panicum","Single"]
["Weed_History\\Foxtail",null,"Weed_History\\Foxtail","Weed_History\\Foxtail","Single"]
["Weed_History\\Morningglory",null,"Weed_History\\Morningglory","Weed_History\\Morningglory","Single"]
["Weed_History\\Pigweed",null,"Weed_History\\Pigweed","Weed_History\\Pigweed","Single"]
["Weed_History\\Ragweed",null,"Weed_History\\Ragweed","Weed_History\\Ragweed","Single"]
["Weed_History\\Smilax",null,"Weed_History\\Smilax","Weed_History\\Smilax","Single"]
["Weed_History\\Tree_Saplings",null,"Weed_History\\Tree_Saplings","Weed_History\\Tree_Saplings","Single"]
["Weed_History\\Yellow_Nutsedge",null,"Weed_History\\Yellow_Nutsedge","Weed_History\\Yellow_Nutsedge","Single"]
["Weed_Management\\Herbicide_Applications",null,"Weed_Management\\Herbicide_Applications","Weed_Management\\Herbicide_Applications","Single"]

{"sheet":"Costs","index":5,"n_rows":24,"n_cols":14,"rows_kept":24,"cut":false,"hidden":true,"merged":[[0,7,0,9],[0,10,0,12],[6,7,6,9],[6,10,6,12],[10,7,10,9],[10,10,10,12]]}
["Land Area Units ","ac",null,null,null,null,null,{"$f":"Cost_Header","v":"Cost ($/ac)"},null,null,{"$f":"CONCATENATE(\"Person Hours (hrs/\",sel_Land_Area_Units,\")\")","v":"Person Hours (hrs/ac)"}]
["Category","Item",{"$f":"CONCATENATE(\"Cost ($/\",sel_Land_Area_Units,\")\")","v":"Cost ($/ac)"},"Multiplier",{"$f":"CONCATENATE(\"Person Hours (hrs/\",sel_Land_Area_Units,\")\")","v":"Person Hours (hrs/ac)"},null,"Category","Max","Min","Sel","Max","Min","Sel","Selection"]
["Base_Cost",null,210,null,null,null,"Base_Cost",{"$f":"Cost_Base","v":210},{"$f":"Cost_Base","v":210},{"$f":"Cost_Base","v":210},{"$f":"PersonHours_Base","v":0},{"$f":"PersonHours_Base","v":0},{"$f":"PersonHours_Base","v":0}]
[]
[null,null,null,null,null,null,"Total",{"$f":"SUM(H$3:H3)","v":210},{"$f":"SUM(I$3:I3)","v":210},{"$f":"IF(ISERROR(SUM(J$3:J3)),0,SUM(J$3:J3))","v":210},{"$f":"SUM(K$3:K3)","v":0},{"$f":"SUM(L$3:L3)","v":0},{"$f":"IF(ISERROR(SUM(M$3:M3)),0,SUM(M$3:M3))","v":0}]
[]
[null,null,null,null,null,null,null,{"$f":"CONCATENATE(\"Cost Thresholds ($/\",sel_Land_Area_Units,\")\")","v":"Cost Thresholds ($/ac)"},null,null,{"$f":"CONCATENATE(\"Person Hour Thresholds (hrs/\",sel_Land_Area_Units,\")\")","v":"Person Hour Thresholds (hrs/ac)"}]
[null,null,null,null,null,null,"High",{"$f":"Cost_Min + 0.66667*(Cost_Max-Cost_Min)","v":210},null,null,{"$f":"PersonHours_Min + 0.66667*(PersonHours_Max-PersonHours_Min)","v":0}]
[null,null,null,null,null,null,"Moderate",{"$f":"Cost_Min + 0.33333*(Cost_Max-Cost_Min)","v":210},null,null,{"$f":"PersonHours_Min + 0.33333*(PersonHours_Max-PersonHours_Min)","v":0}]
[]
[null,null,null,null,null,null,null,{"$f":"CONCATENATE(\"Cost Ranges ($/\",sel_Land_Area_Units,\")\")","v":"Cost Ranges ($/ac)"},null,null,{"$f":"CONCATENATE(\"Person Hour Ranges (hrs/\",sel_Land_Area_Units,\")\")","v":"Person Hour Ranges (hrs/ac)"}]
[null,null,null,null,null,null,"Base",{"$f":"Cost_Base","v":210},null,null,{"$f":"PersonHours_Base","v":0}]
[null,null,null,null,null,null,"Low",{"$f":"Cost_Moderate-Cost_Base","v":0},null,null,{"$f":"PersonHours_Moderate-PersonHours_Base","v":0}]
[null,null,null,null,null,null,"Moderate",{"$f":"Cost_High-Cost_Moderate","v":0},null,null,{"$f":"PersonHours_High-PersonHours_Moderate","v":0}]
[null,null,null,null,null,null,"High",{"$f":"Cost_Max-Cost_High","v":0},null,null,{"$f":"PersonHours_Max-PersonHours_High","v":0}]
[]
[null,null,null,null,null,null,{"$f":"CONCATENATE(\"Estimated Cost: $\",ROUNDUP(TRUNC(Cost,2),0),\"/\",sel_Land_Area_Units)","v":"Estimated Cost: $210/ac"}]
[]
[]
[]
[]
[]
[]
[null,null,null,null,null,null,{"$f":"CONCATENATE(\"Estimated Person Hours: \",ROUNDUP(TRUNC(PersonHours,2),0),\" hrs/\",sel_Land_Area_Units)","v":"Estimated Person Hours: 0 hrs/ac"}]

{"sheet":"Logos","index":6,"n_rows":0,"n_cols":0,"rows_kept":0,"cut":false,"hidden":true,"merged":[]}

{"sheet":"Pest_Report","index":7,"n_rows":38,"n_cols":4,"rows_kept":38,"cut":false,"hidden":true,"merged":[[21,3,23,3],[28,3,30,3],[31,0,31,1],[31,2,31,3],[37,0,37,3],[24,0,24,1],[24,2,24,3],[25,3,26,3],[27,0,27,1],[27,2,27,3],[32,3,35,3],[9,3,10,3],[11,0,11,1],[11,2,11,3],[0,0,0,3],[5,0,5,1],[5,2,5,3],[6,3,7,3],[8,0,8,1],[8,2,8,3],[17,3,19,3],[20,0,20,1],[20,2,20,3],[12,3,15,3],[16,0,16,1],[16,2,16,3]]}
["Blueberry - Botryosphaeria Stem Blight Risk Summary"]
[]
[]
[]
[]
["Crop\\Age",null,"Risk Points"]
[null,"1 to 3 years*",15,15]
[null,"4 to 6 years, 7 years or older",5]
["Crop\\Type",null,"Risk Points"]
[null,"Southern Highbush, S. Highbush (cv. Star)",10,5]
[null,"Rabbiteye*",5]
["Crop Practices\\Pruning",null,"Risk Points"]
[null,"Summer hedge*",15,15]
[null,"Winter hedge",10]
[null,"By hand",5]
[null,"Never",0]
["Field\\Soil Drainage",null,"Risk Points"]
[null,"Poor*",10,10]
[null,"Moderate",5]
[null,"Good",0]
["Field\\Soil Texture",null,"Risk Points"]
[null,"Sandy",15,5]
[null,"Sandy loam, Clay loam",10]
[null,"Clay*",5]
["Field Practices\\Bed Type",null,"Risk Points"]
[null,"Bare*",10,10]
[null,"Bark/Mulch, Plastic/Fabric",-5]
["Field Practices\\Irrigation",null,"Risk Points"]
[null,"None",10,5]
[null,"Overhead*",5]
[null,"Drip",-5]
["Pest History Diseases\\Botryosphaeria Stem Blight",null,"Risk Points"]
[null,"Within last 2 years*",15,15]
[null,"Within 2 to 5 years",10]
[null,"More than 5 years ago",5]
[null,"Never",0]
[]
["* Selected options used in calculating pest risk.\r\nNote: Reduction in pest risk value by a control practice will be less under low risk conditions."]

{"sheet":"WGRCG","index":8,"n_rows":29,"n_cols":12,"rows_kept":29,"cut":false,"hidden":true,"merged":[[0,0,0,3]]}
["Crabgrass"]
["Category","Risk Level","Risk Level Description","Points",null,null,null,"Category","Max","Min","Risk","Selection"]
["Crop\\Age",1,"1 to 3 years",15,null,null,null,"Crop\\Age",15,5,{"$f":"getRiskValue(\"A:A\",H3,J3,L3,\"Single\")","v":15},{"$f":"IF(ISBLANK(sel_Crop\\Age),\"\",sel_Crop\\Age)","v":"1 to 3 years"}]
["Crop\\Age",2,"4 to 6 years",10,null,null,null,"Weed_History\\Crabgrass",15,0,15,{"$f":"IF(ISBLANK(sel_Weed_History\\Crabgrass),\"\",sel_Weed_History\\Crabgrass)","v":"Within last 2 years"}]
["Crop\\Age",3,"7 years or older",5,null,null,null,"Weed_Management\\Herbicide_Applications",15,-15,15,{"$f":"IF(ISBLANK(sel_Weed_Management\\Herbicide_Applications),\"\",sel_Weed_Management\\Herbicide_Applications)","v":"None"}]
["Crop_Practices\\Pruning",1,"Summer hedge",10,null,null,null,"Crop_Practices\\Pruning",10,5,10,{"$f":"IF(ISBLANK(sel_Crop_Practices\\Pruning),\"\",sel_Crop_Practices\\Pruning)","v":"Summer hedge"}]
["Crop_Practices\\Pruning",2,"Never|Winter hedge|By hand",5,null,null,null,"Field\\Prior_Land_Use",10,0,10,{"$f":"IF(ISBLANK(sel_Field\\Prior_Land_Use),\"\",sel_Field\\Prior_Land_Use)","v":"Turf"}]
["Field\\Prior_Land_Use",1,"Turf",10,null,null,null,"Field_Practices\\Bed_Type",10,0,10,{"$f":"IF(ISBLANK(sel_Field_Practices\\Bed_Type),\"\",sel_Field_Practices\\Bed_Type)","v":"Bare"}]
["Field\\Prior_Land_Use",2,"Cultivated",5,null,null,null,"Field_Practices\\In_Row",10,0,10,{"$f":"IF(ISBLANK(sel_Field_Practices\\In_Row),\"\",sel_Field_Practices\\In_Row)","v":"Weedy"}]
["Field\\Prior_Land_Use",3,"Forest/fallow",0,null,null,null,"Field_Practices\\Row_Middles",10,-5,10,{"$f":"IF(ISBLANK(sel_Field_Practices\\Row_Middles),\"\",sel_Field_Practices\\Row_Middles)","v":"Weedy"}]
["Field_Practices\\Bed_Type",1,"Bare",10,null,null,null,"Field_Practices\\Irrigation",5,0,5,{"$f":"IF(ISBLANK(sel_Field_Practices\\Irrigation),\"\",sel_Field_Practices\\Irrigation)","v":"Overhead"}]
["Field_Practices\\Bed_Type",2,"Bark/Mulch",5]
["Field_Practices\\Bed_Type",3,"Plastic/Fabric",0,null,null,null,"Total",{"$f":"SUMIF(I3:I11,\">0\")","v":100},{"$f":"SUMIF(J3:J11,\">0\")","v":10},{"$f":"MAX(WGRCG_MinRiskIndex,SUM(K3:K11))","v":100}]
["Field_Practices\\In_Row",1,"Weedy|Cover crop",10]
["Field_Practices\\In_Row",2,"Weed-free",0,null,null,null,"High Risk Index",75]
["Field_Practices\\Irrigation",1,"Drip|Overhead",5,null,null,null,"Moderate Risk Index",45]
["Field_Practices\\Irrigation",2,"None",0]
["Field_Practices\\Row_Middles",1,"Weedy|Cover crop",10]
["Field_Practices\\Row_Middles",2,"Weed-free",0]
["Field_Practices\\Row_Middles",3,"Tilled",-5]
["Weed_History\\Crabgrass",1,"Within last 2 years",15]
["Weed_History\\Crabgrass",2,"Within 2 to 5 years",10]
["Weed_History\\Crabgrass",3,"More than 5 years ago",5]
["Weed_History\\Crabgrass",4,"Never",0]
["Weed_Management\\Herbicide_Applications",1,"None",15]
["Weed_Management\\Herbicide_Applications",2,"1 recommended",5]
["Weed_Management\\Herbicide_Applications",3,"2 recommended",-5]
["Weed_Management\\Herbicide_Applications",4,"3 recommended",-10]
["Weed_Management\\Herbicide_Applications",5,"4 or more recommended",-15]

{"sheet":"WGRFPN","index":9,"n_rows":31,"n_cols":12,"rows_kept":31,"cut":false,"hidden":true,"merged":[[0,0,0,3]]}
["Fall Panicum"]
["Category","Risk Level","Risk Level Description","Points",null,null,null,"Category","Max","Min","Risk","Selection"]
["Crop\\Age",1,"1 to 3 years",15,null,null,null,"Crop\\Age",15,5,{"$f":"getRiskValue(\"A:A\",H3,J3,L3,\"Single\")","v":15},{"$f":"IF(ISBLANK(sel_Crop\\Age),\"\",sel_Crop\\Age)","v":"1 to 3 years"}]
["Crop\\Age",2,"4 to 6 years",10,null,null,null,"Weed_History\\Fall_Panicum",15,0,15,{"$f":"IF(ISBLANK(sel_Weed_History\\Fall_Panicum),\"\",sel_Weed_History\\Fall_Panicum)","v":"Within last 2 years"}]
["Crop\\Age",3,"7 years or older",5,null,null,null,"Weed_Management\\Herbicide_Applications",15,-15,15,{"$f":"IF(ISBLANK(sel_Weed_Management\\Herbicide_Applications),\"\",sel_Weed_Management\\Herbicide_Applications)","v":"None"}]
["Crop_Practices\\Pruning",1,"Summer hedge",10,null,null,null,"Crop_Practices\\Pruning",10,5,10,{"$f":"IF(ISBLANK(sel_Crop_Practices\\Pruning),\"\",sel_Crop_Practices\\Pruning)","v":"Summer hedge"}]
["Crop_Practices\\Pruning",2,"Never|Winter hedge|By hand",5,null,null,null,"Field\\Prior_Land_Use",10,0,0,{"$f":"IF(ISBLANK(sel_Field\\Prior_Land_Use),\"\",sel_Field\\Prior_Land_Use)","v":"Turf"}]
["Field\\Prior_Land_Use",1,"Cultivated",10,null,null,null,"Field_Practices\\Bed_Type",10,0,10,{"$f":"IF(ISBLANK(sel_Field_Practices\\Bed_Type),\"\",sel_Field_Practices\\Bed_Type)","v":"Bare"}]
["Field\\Prior_Land_Use",2,"Forest/fallow",5,null,null,null,"Field_Practices\\In_Row",10,0,10,{"$f":"IF(ISBLANK(sel_Field_Practices\\In_Row),\"\",sel_Field_Practices\\In_Row)","v":"Weedy"}]
["Field\\Prior_Land_Use",3,"Turf",0,null,null,null,"Field_Practices\\Row_Middles",10,-5,10,{"$f":"IF(ISBLANK(sel_Field_Practices\\Row_Middles),\"\",sel_Field_Practices\\Row_Middles)","v":"Weedy"}]
["Field_Practices\\Bed_Type",1,"Bare",10,null,null,null,"Field_Practices\\Irrigation",5,0,5,{"$f":"IF(ISBLANK(sel_Field_Practices\\Irrigation),\"\",sel_Field_Practices\\Irrigation)","v":"Overhead"}]
["Field_Practices\\Bed_Type",2,"Bark/Mulch",5]
["Field_Practices\\Bed_Type",3,"Plastic/Fabric",0,null,null,null,"Total",{"$f":"SUMIF(I3:I11,\">0\")","v":100},{"$f":"SUMIF(J3:J11,\">0\")","v":10},{"$f":"MAX(WGRFPN_MinRiskIndex,SUM(K3:K11))","v":90}]
["Field_Practices\\In_Row",1,"Weedy",10]
["Field_Practices\\In_Row",2,"Cover crop",5,null,null,null,"High Risk Index",70]
["Field_Practices\\In_Row",3,"Weed-free",0,null,null,null,"Moderate Risk Index",40]
["Field_Practices\\Irrigation",1,"Drip|Overhead",5]
["Field_Practices\\Irrigation",2,"None",0]
["Field_Practices\\Row_Middles",1,"Weedy",10]
["Field_Practices\\Row_Middles",2,"Cover crop",5]
["Field_Practices\\Row_Middles",3,"Weed-free",0]
["Field_Practices\\Row_Middles",4,"Tilled",-5]
["Weed_History\\Fall_Panicum",1,"Within last 2 years",15]
["Weed_History\\Fall_Panicum",2,"Within 2 to 5 years",10]
["Weed_History\\Fall_Panicum",3,"More than 5 years ago",5]
["Weed_History\\Fall_Panicum",4,"Never",0]
["Weed_Management\\Herbicide_Applications",1,"None",15]
["Weed_Management\\Herbicide_Applications",2,"1 recommended",5]
["Weed_Management\\Herbicide_Applications",3,"2 recommended",-5]
["Weed_Management\\Herbicide_Applications",4,"3 recommended",-10]
["Weed_Management\\Herbicide_Applications",5,"4 or more recommended",-15]

{"sheet":"WABCL","index":10,"n_rows":30,"n_cols":12,"rows_kept":30,"cut":false,"hidden":true,"merged":[[0,0,0,3]]}
["Common Lambsquarters"]
["Category","Risk Level","Risk Level Description","Points",null,null,null,"Category","Max","Min","Risk","Selection"]
["Crop\\Age",1,"1 to 3 years",15,null,null,null,"Crop\\Age",15,5,{"$f":"getRiskValue(\"A:A\",H3,J3,L3,\"Single\")","v":15},{"$f":"IF(ISBLANK(sel_Crop\\Age),\"\",sel_Crop\\Age)","v":"1 to 3 years"}]
["Crop\\Age",2,"4 to 6 years",10,null,null,null,"Weed_History\\Common_Lambsquarter",15,0,15,{"$f":"IF(ISBLANK(sel_Weed_History\\Common_Lambsquarter),\"\",sel_Weed_History\\Common_Lambsquarter)","v":"Within last 2 years"}]
["Crop\\Age",3,"7 years or older",5,null,null,null,"Weed_Management\\Herbicide_Applications",15,-15,15,{"$f":"IF(ISBLANK(sel_Weed_Management\\Herbicide_Applications),\"\",sel_Weed_Management\\Herbicide_Applications)","v":"None"}]
["Crop_Practices\\Pruning",1,"Summer hedge",10,null,null,null,"Crop_Practices\\Pruning",10,5,10,{"$f":"IF(ISBLANK(sel_Crop_Practices\\Pruning),\"\",sel_Crop_Practices\\Pruning)","v":"Summer hedge"}]
["Crop_Practices\\Pruning",2,"Never|Winter hedge|By hand",5,null,null,null,"Field\\Prior_Land_Use",10,0,0,{"$f":"IF(ISBLANK(sel_Field\\Prior_Land_Use),\"\",sel_Field\\Prior_Land_Use)","v":"Turf"}]
["Field\\Prior_Land_Use",1,"Cultivated",10,null,null,null,"Field_Practices\\Bed_Type",10,0,10,{"$f":"IF(ISBLANK(sel_Field_Practices\\Bed_Type),\"\",sel_Field_Practices\\Bed_Type)","v":"Bare"}]
["Field\\Prior_Land_Use",2,"Forest/fallow|Turf",0,null,null,null,"Field_Practices\\In_Row",10,0,10,{"$f":"IF(ISBLANK(sel_Field_Practices\\In_Row),\"\",sel_Field_Practices\\In_Row)","v":"Weedy"}]
["Field_Practices\\Bed_Type",1,"Bare",10,null,null,null,"Field_Practices\\Row_Middles",10,-5,10,{"$f":"IF(ISBLANK(sel_Field_Practices\\Row_Middles),\"\",sel_Field_Practices\\Row_Middles)","v":"Weedy"}]
["Field_Practices\\Bed_Type",2,"Bark/Mulch",5,null,null,null,"Field_Practices\\Irrigation",5,0,5,{"$f":"IF(ISBLANK(sel_Field_Practices\\Irrigation),\"\",sel_Field_Practices\\Irrigation)","v":"Overhead"}]
["Field_Practices\\Bed_Type",3,"Plastic/Fabric",0]
["Field_Practices\\In_Row",1,"Weedy",10,null,null,null,"Total",{"$f":"SUMIF(I3:I11,\">0\")","v":100},{"$f":"SUMIF(J3:J11,\">0\")","v":10},{"$f":"MAX(WABCL_MinRiskIndex,SUM(K3:K11))","v":90}]
["Field_Practices\\In_Row",2,"Cover crop",5]
["Field_Practices\\In_Row",3,"Weed-free",0,null,null,null,"High Risk Index",70]
["Field_Practices\\Irrigation",1,"Drip|Overhead",5,null,null,null,"Moderate Risk Index",40]
["Field_Practices\\Irrigation",2,"None",0]
["Field_Practices\\Row_Middles",1,"Weedy",10]
["Field_Practices\\Row_Middles",2,"Cover crop",5]
["Field_Practices\\Row_Middles",3,"Weed-free",0]
["Field_Practices\\Row_Middles",4,"Tilled",-5]
["Weed_History\\Common_Lambsquarter",1,"Within last 2 years",15]
["Weed_History\\Common_Lambsquarter",2,"Within last 2 to 5 years",10]
["Weed_History\\Common_Lambsquarter",3,"More than 5 years ago",5]
["Weed_History\\Common_Lambsquarter",4,"Never",0]
["Weed_Management\\Herbicide_Applications",1,"None",15]
["Weed_Management\\Herbicide_Applications",2,"1 recommended",5]
["Weed_Management\\Herbicide_Applications",3,"2 recommended",-5]
["Weed_Management\\Herbicide_Applications",4,"3 recommended",-10]
["Weed_Management\\Herbicide_Applications",5,"4 or more recommended",-15]

{"sheet":"WPYNS","index":11,"n_rows":24,"n_cols":12,"rows_kept":24,"cut":false,"hidden":true,"merged":[[0,0,0,3]]}
["Yellow Nutsedge"]
["Category","Risk Level","Risk Level Description","Points",null,null,null,"Category","Max","Min","Risk","Selection"]
["Crop\\Age",1,"7 years or older",15,null,null,null,"Weed_History\\Yellow_Nutsedge",20,0,{"$f":"getRiskValue(\"A:A\",H3,J3,L3,\"Single\")","v":20},{"$f":"IF(ISBLANK(sel_Weed_History\\Yellow_Nutsedge),\"\",sel_Weed_History\\Yellow_Nutsedge)","v":"Within last 2 years"}]
["Crop\\Age",2,"1 to 3 years|4 to 6 years",10,null,null,null,"Crop\\Age",15,10,10,{"$f":"IF(ISBLANK(sel_Crop\\Age),\"\",sel_Crop\\Age)","v":"1 to 3 years"}]
["Crop_Practices\\Pruning",1,"Summer hedge",10,null,null,null,"Field_Practices\\Bed_Type",15,5,15,{"$f":"IF(ISBLANK(sel_Field_Practices\\Bed_Type),\"\",sel_Field_Practices\\Bed_Type)","v":"Bare"}]
["Crop_Practices\\Pruning",2,"Never|Winter hedge|By hand",5,null,null,null,"Weed_Management\\Herbicide_Applications",15,-5,15,{"$f":"IF(ISBLANK(sel_Weed_Management\\Herbicide_Applications),\"\",sel_Weed_Management\\Herbicide_Applications)","v":"None"}]
["Field\\Prior_Land_Use",1,"Cultivated",10,null,null,null,"Crop_Practices\\Pruning",10,5,10,{"$f":"IF(ISBLANK(sel_Crop_Practices\\Pruning),\"\",sel_Crop_Practices\\Pruning)","v":"Summer hedge"}]
["Field\\Prior_Land_Use",2,"Turf",5,null,null,null,"Field\\Prior_Land_Use",10,0,5,{"$f":"IF(ISBLANK(sel_Field\\Prior_Land_Use),\"\",sel_Field\\Prior_Land_Use)","v":"Turf"}]
["Field\\Prior_Land_Use",3,"Forest/fallow",0,null,null,null,"Field_Practices\\In_Row",10,0,10,{"$f":"IF(ISBLANK(sel_Field_Practices\\In_Row),\"\",sel_Field_Practices\\In_Row)","v":"Weedy"}]
["Field_Practices\\Bed_Type",1,"Bare",15,null,null,null,"Field_Practices\\Row_Middles",10,0,10,{"$f":"IF(ISBLANK(sel_Field_Practices\\Row_Middles),\"\",sel_Field_Practices\\Row_Middles)","v":"Weedy"}]
["Field_Practices\\Bed_Type",2,"Bark/Mulch|Plastic/Fabric",5,null,null,null,"Field_Practices\\Irrigation",5,0,5,{"$f":"IF(ISBLANK(sel_Field_Practices\\Irrigation),\"\",sel_Field_Practices\\Irrigation)","v":"Overhead"}]
["Field_Practices\\In_Row",1,"Weedy|Cover crop",10]
["Field_Practices\\In_Row",2,"Weed-free",0,null,null,null,"Total",{"$f":"SUMIF(I3:I11,\">0\")","v":110},{"$f":"SUMIF(J3:J11,\">0\")","v":20},{"$f":"MAX(WPYNS_MinRiskIndex,SUM(K3:K11))","v":100}]
["Field_Practices\\Irrigation",1,"Drip|Overhead",5]
["Field_Practices\\Irrigation",2,"None",0,null,null,null,"High Risk Index",65]
["Field_Practices\\Row_Middles",1,"Weedy|Cover crop",10,null,null,null,"Moderate Risk Index",40]
["Field_Practices\\Row_Middles",2,"Weed-free|Tilled",0]
["Weed_History\\Yellow_Nutsedge",1,"Within last 2 years",20]
["Weed_History\\Yellow_Nutsedge",2,"Within 2 to 5 years",10]
["Weed_History\\Yellow_Nutsedge",3,"More than 5 years ago",5]
["Weed_History\\Yellow_Nutsedge",4,"Never",0]
["Weed_Management\\Herbicide_Applications",1,"None",15]
["Weed_Management\\Herbicide_Applications",2,"1 recommended",5]
["Weed_Management\\Herbicide_Applications",3,"2 recommended|3 recommended|4 or more recommended",-5]

{"sheet":"ISWD","index":12,"n_rows":12,"n_cols":12,"rows_kept":12,"cut":false,"hidden":true,"merged":[[0,0,0,3]]}
["Spotted Wing Drosophila"]
["Category","Risk Level","Risk Level Description","Points",null,null,null,"Category","Max","Min","Risk","Selection"]
["Pest_History_Insects\\Spotted_Wing_Drosophila",1,"Within last 2 years",20,null,null,null,"Pest_History_Insects\\Spotted_Wing_Drosophila",20,0,{"$f":"getRiskValue(\"A:A\",H3,J3,L3,\"Single\")","v":20},{"$f":"IF(ISBLANK(sel_Pest_History_Insects\\Spotted_Wing_Drosophila),\"\",sel_Pest_History_Insects\\Spotted_Wing_Drosophila)","v":"Within last 2 years"}]
["Pest_History_Insects\\Spotted_Wing_Drosophila",2,"Within 2 to 5 years",15,null,null,null,"Pest_Management_Chemical\\Insecticides",20,-10,{"$f":"getRiskValue(\"A:A\",H4,J4,L4,\"Single\")","v":20},{"$f":"IF(ISBLANK(sel_Pest_Management_Chemical\\Insecticides),\"\",sel_Pest_Management_Chemical\\Insecticides)","v":"None"}]
["Pest_History_Insects\\Spotted_Wing_Drosophila",3,"More than 5 years ago",5,null,null,null,"Pest_Management_Traps\\Spotted_Wing_Drosophila",10,-10,{"$f":"getRiskValue(\"A:A\",H5,J5,L5,\"Single\")","v":10},{"$f":"IF(ISBLANK(sel_Pest_Management_Traps\\Spotted_Wing_Drosophila),\"\",sel_Pest_Management_Traps\\Spotted_Wing_Drosophila)","v":"Not used"}]
["Pest_History_Insects\\Spotted_Wing_Drosophila",4,"Never",0]
["Pest_Management_Chemical\\Insecticides",1,"None",20,null,null,null,"Total",{"$f":"SUMIF(I3:I5,\">0\")","v":50},{"$f":"SUMIF(J3:J5,\">0\")","v":0},{"$f":"MAX(ISWD_MinRiskIndex,SUM(K3:K5))","v":50}]
["Pest_Management_Chemical\\Insecticides",2,"1 to 2 recommended",5]
["Pest_Management_Chemical\\Insecticides",3,"3 to 4 recommended",-5,null,null,null,"High Risk Index",20]
["Pest_Management_Chemical\\Insecticides",4,"5 or more recommended",-10,null,null,null,"Moderate Risk Index",10]
["Pest_Management_Traps\\Spotted_Wing_Drosophila",1,"Not used",10]
["Pest_Management_Traps\\Spotted_Wing_Drosophila",2,"Used",-10]

{"sheet":"IGM","index":13,"n_rows":11,"n_cols":12,"rows_kept":11,"cut":false,"hidden":true,"merged":[[0,0,0,3]]}
["Gall Midge"]
["Category","Risk Level","Risk Level Description","Points",null,null,null,"Category","Max","Min","Risk","Selection"]
["Crop\\Type",1,"Rabbiteye",10,null,null,null,"Pest_History_Insects\\Gall_Midge",15,0,{"$f":"getRiskValue(\"A:A\",H3,J3,L3,\"Single\")","v":15},{"$f":"IF(ISBLANK(sel_Pest_History_Insects\\Gall_Midge),\"\",sel_Pest_History_Insects\\Gall_Midge)","v":"Within last 2 years"}]
["Crop\\Type",2,"Southern Highbush|S. Highbush (cv. Star)",5,null,null,null,"Crop\\Type",10,5,{"$f":"getRiskValue(\"A:A\",H4,J4,L4,\"Single\")","v":10},{"$f":"IF(ISBLANK(sel_Crop\\Type),\"\",sel_Crop\\Type)","v":"Rabbiteye"}]
["Pest_History_Insects\\Gall_Midge",1,"Within last 2 years",15,null,null,null,"Pest_Management_Chemical\\Insecticides",10,-10,{"$f":"getRiskValue(\"A:A\",H5,J5,L5,\"Single\")","v":10},{"$f":"IF(ISBLANK(sel_Pest_Management_Chemical\\Insecticides),\"\",sel_Pest_Management_Chemical\\Insecticides)","v":"None"}]
["Pest_History_Insects\\Gall_Midge",2,"Within 2 to 5 years",10]
["Pest_History_Insects\\Gall_Midge",3,"More than 5 years ago",5,null,null,null,"Total",{"$f":"SUMIF(I3:I5,\">0\")","v":35},{"$f":"SUMIF(J3:J5,\">0\")","v":5},{"$f":"MAX(IGM_MinRiskIndex,SUM(K3:K5))","v":35}]
["Pest_History_Insects\\Gall_Midge",4,"Never",0]
["Pest_Management_Chemical\\Insecticides",1,"None",10,null,null,null,"High Risk Index",20]
["Pest_Management_Chemical\\Insecticides",2,"1 to 2 recommended",-5,null,null,null,"Moderate Risk Index",10]
["Pest_Management_Chemical\\Insecticides",3,"3 to 4 recommended|5 or more recommended",-10]

{"sheet":"WGRFXT","index":14,"n_rows":31,"n_cols":12,"rows_kept":31,"cut":false,"hidden":true,"merged":[[0,0,0,3]]}
["Foxtail"]
["Category","Risk Level","Risk Level Description","Points",null,null,null,"Category","Max","Min","Risk","Selection"]
["Crop\\Age",1,"1 to 3 years",15,null,null,null,"Crop\\Age",15,5,{"$f":"getRiskValue(\"A:A\",H3,J3,L3,\"Single\")","v":15},{"$f":"IF(ISBLANK(sel_Crop\\Age),\"\",sel_Crop\\Age)","v":"1 to 3 years"}]
["Crop\\Age",2,"4 to 6 years",10,null,null,null,"Weed_History\\Foxtail",15,0,15,{"$f":"IF(ISBLANK(sel_Weed_History\\Foxtail),\"\",sel_Weed_History\\Foxtail)","v":"Within last 2 years"}]
["Crop\\Age",3,"7 years or older",5,null,null,null,"Weed_Management\\Herbicide_Applications",15,-15,15,{"$f":"IF(ISBLANK(sel_Weed_Management\\Herbicide_Applications),\"\",sel_Weed_Management\\Herbicide_Applications)","v":"None"}]
["Crop_Practices\\Pruning",1,"Summer hedge",10,null,null,null,"Crop_Practices\\Pruning",10,5,10,{"$f":"IF(ISBLANK(sel_Crop_Practices\\Pruning),\"\",sel_Crop_Practices\\Pruning)","v":"Summer hedge"}]
["Crop_Practices\\Pruning",2,"Never|Winter hedge|By hand",5,null,null,null,"Field\\Prior_Land_Use",10,0,0,{"$f":"IF(ISBLANK(sel_Field\\Prior_Land_Use),\"\",sel_Field\\Prior_Land_Use)","v":"Turf"}]
["Field\\Prior_Land_Use",1,"Cultivated",10,null,null,null,"Field_Practices\\Bed_Type",10,0,10,{"$f":"IF(ISBLANK(sel_Field_Practices\\Bed_Type),\"\",sel_Field_Practices\\Bed_Type)","v":"Bare"}]
["Field\\Prior_Land_Use",2,"Forest/fallow",5,null,null,null,"Field_Practices\\In_Row",10,0,10,{"$f":"IF(ISBLANK(sel_Field_Practices\\In_Row),\"\",sel_Field_Practices\\In_Row)","v":"Weedy"}]
["Field\\Prior_Land_Use",3,"Turf",0,null,null,null,"Field_Practices\\Row_Middles",10,-5,10,{"$f":"IF(ISBLANK(sel_Field_Practices\\Row_Middles),\"\",sel_Field_Practices\\Row_Middles)","v":"Weedy"}]
["Field_Practices\\Bed_Type",1,"Bare",10,null,null,null,"Field_Practices\\Irrigation",5,0,5,{"$f":"IF(ISBLANK(sel_Field_Practices\\Irrigation),\"\",sel_Field_Practices\\Irrigation)","v":"Overhead"}]
["Field_Practices\\Bed_Type",2,"Bark/Mulch",5]
["Field_Practices\\Bed_Type",3,"Plastic/Fabric",0,null,null,null,"Total",{"$f":"SUMIF(I3:I11,\">0\")","v":100},{"$f":"SUMIF(J3:J11,\">0\")","v":10},{"$f":"MAX(WGRFXT_MinRiskIndex,SUM(K3:K11))","v":90}]
["Field_Practices\\In_Row",1,"Weedy",10]
["Field_Practices\\In_Row",2,"Cover crop",5,null,null,null,"High Risk Index",70]
["Field_Practices\\In_Row",3,"Weed-free",0,null,null,null,"Moderate Risk Index",40]
["Field_Practices\\Irrigation",1,"Drip|Overhead",5]
["Field_Practices\\Irrigation",2,"None",0]
["Field_Practices\\Row_Middles",1,"Weedy",10]
["Field_Practices\\Row_Middles",2,"Cover crop",5]
["Field_Practices\\Row_Middles",3,"Weed-free",0]
["Field_Practices\\Row_Middles",4,"Tilled",-5]
["Weed_History\\Foxtail",1,"Within last 2 years",15]
["Weed_History\\Foxtail",2,"Within 2 to 5 years",10]
["Weed_History\\Foxtail",3,"More than 5 years ago",5]
["Weed_History\\Foxtail",4,"Never",0]
["Weed_Management\\Herbicide_Applications",1,"None",15]
["Weed_Management\\Herbicide_Applications",2,"1 recommended",5]
["Weed_Management\\Herbicide_Applications",3,"2 recommended",-5]
["Weed_Management\\Herbicide_Applications",4,"3 recommended",-10]
["Weed_Management\\Herbicide_Applications",5,"4 or more recommended",-15]

{"sheet":"WPBRMG","index":15,"n_rows":26,"n_cols":12,"rows_kept":26,"cut":false,"hidden":true,"merged":[[0,0,0,3]]}
["Bermudagrass"]
["Category","Risk Level","Risk Level Description","Points",null,null,null,"Category","Max","Min","Risk","Selection"]
["Crop\\Age",1,"7 years or older",15,null,null,null,"Weed_History\\Bermudagrass",20,0,{"$f":"getRiskValue(\"A:A\",H3,J3,L3,\"Single\")","v":20},{"$f":"IF(ISBLANK(sel_Weed_History\\Bermudagrass),\"\",sel_Weed_History\\Bermudagrass)","v":"Within last 2 years"}]
["Crop\\Age",2,"1 to 3 years|4 to 6 years",10,null,null,null,"Crop\\Age",15,10,10,{"$f":"IF(ISBLANK(sel_Crop\\Age),\"\",sel_Crop\\Age)","v":"1 to 3 years"}]
["Crop_Practices\\Pruning",1,"Summer hedge",10,null,null,null,"Field\\Prior_Land_Use",15,5,15,{"$f":"IF(ISBLANK(sel_Field\\Prior_Land_Use),\"\",sel_Field\\Prior_Land_Use)","v":"Turf"}]
["Crop_Practices\\Pruning",2,"Never|Winter hedge|By hand",5,null,null,null,"Weed_Management\\Herbicide_Applications",15,-10,15,{"$f":"IF(ISBLANK(sel_Weed_Management\\Herbicide_Applications),\"\",sel_Weed_Management\\Herbicide_Applications)","v":"None"}]
["Field\\Prior_Land_Use",1,"Turf",15,null,null,null,"Crop_Practices\\Pruning",10,5,10,{"$f":"IF(ISBLANK(sel_Crop_Practices\\Pruning),\"\",sel_Crop_Practices\\Pruning)","v":"Summer hedge"}]
["Field\\Prior_Land_Use",2,"Forest/fallow|Cultivated",5,null,null,null,"Field_Practices\\Bed_Type",10,0,10,{"$f":"IF(ISBLANK(sel_Field_Practices\\Bed_Type),\"\",sel_Field_Practices\\Bed_Type)","v":"Bare"}]
["Field_Practices\\Bed_Type",1,"Bare",10,null,null,null,"Field_Practices\\In_Row",10,0,10,{"$f":"IF(ISBLANK(sel_Field_Practices\\In_Row),\"\",sel_Field_Practices\\In_Row)","v":"Weedy"}]
["Field_Practices\\Bed_Type",2,"Bark/Mulch",5,null,null,null,"Field_Practices\\Row_Middles",10,0,10,{"$f":"IF(ISBLANK(sel_Field_Practices\\Row_Middles),\"\",sel_Field_Practices\\Row_Middles)","v":"Weedy"}]
["Field_Practices\\Bed_Type",3,"Plastic/Fabric",0,null,null,null,"Field_Practices\\Irrigation",5,0,5,{"$f":"IF(ISBLANK(sel_Field_Practices\\Irrigation),\"\",sel_Field_Practices\\Irrigation)","v":"Overhead"}]
["Field_Practices\\In_Row",1,"Weedy|Cover crop",10]
["Field_Practices\\In_Row",2,"Weed-free",0,null,null,null,"Total",{"$f":"SUMIF(I3:I11,\">0\")","v":110},{"$f":"SUMIF(J3:J11,\">0\")","v":20},{"$f":"MAX(WPBRMG_MinRiskIndex,SUM(K3:K11))","v":105}]
["Field_Practices\\Irrigation",1,"Drip|Overhead",5]
["Field_Practices\\Irrigation",2,"None",0,null,null,null,"High Risk Index",70]
["Field_Practices\\Row_Middles",1,"Weedy|Cover crop",10,null,null,null,"Moderate Risk Index",35]
["Field_Practices\\Row_Middles",2,"Tilled",5]
["Field_Practices\\Row_Middles",3,"Weed-free",0]
["Weed_History\\Bermudagrass",1,"Within last 2 years",20]
["Weed_History\\Bermudagrass",2,"Within 2 to 5 years",10]
["Weed_History\\Bermudagrass",3,"More than 5 years ago",5]
["Weed_History\\Bermudagrass",4,"Never",0]
["Weed_Management\\Herbicide_Applications",1,"None",15]
["Weed_Management\\Herbicide_Applications",2,"1 recommended",5]
["Weed_Management\\Herbicide_Applications",3,"2 recommended",-5]
["Weed_Management\\Herbicide_Applications",4,"3 recommended|4 or more recommended",-10]

{"sheet":"WABDK","index":16,"n_rows":30,"n_cols":12,"rows_kept":30,"cut":false,"hidden":true,"merged":[[0,0,0,3]]}
["Dock"]
["Category","Risk Level","Risk Level Description","Points",null,null,null,"Category","Max","Min","Risk","Selection"]
["Crop\\Age",1,"1 to 3 years",15,null,null,null,"Crop\\Age",15,5,{"$f":"getRiskValue(\"A:A\",H3,J3,L3,\"Single\")","v":15},{"$f":"IF(ISBLANK(sel_Crop\\Age),\"\",sel_Crop\\Age)","v":"1 to 3 years"}]
["Crop\\Age",2,"4 to 6 years",10,null,null,null,"Weed_History\\Dock",15,0,15,{"$f":"IF(ISBLANK(sel_Weed_History\\Dock),\"\",sel_Weed_History\\Dock)","v":"Within last 2 years"}]
["Crop\\Age",3,"7 years or older",5,null,null,null,"Weed_Management\\Herbicide_Applications",15,-10,15,{"$f":"IF(ISBLANK(sel_Weed_Management\\Herbicide_Applications),\"\",sel_Weed_Management\\Herbicide_Applications)","v":"None"}]
["Crop_Practices\\Pruning",1,"Summer hedge",10,null,null,null,"Crop_Practices\\Pruning",10,5,10,{"$f":"IF(ISBLANK(sel_Crop_Practices\\Pruning),\"\",sel_Crop_Practices\\Pruning)","v":"Summer hedge"}]
["Crop_Practices\\Pruning",2,"Never|Winter hedge|By hand",5,null,null,null,"Field\\Prior_Land_Use",10,0,0,{"$f":"IF(ISBLANK(sel_Field\\Prior_Land_Use),\"\",sel_Field\\Prior_Land_Use)","v":"Turf"}]
["Field\\Prior_Land_Use",1,"Cultivated",10,null,null,null,"Field_Practices\\Bed_Type",10,0,10,{"$f":"IF(ISBLANK(sel_Field_Practices\\Bed_Type),\"\",sel_Field_Practices\\Bed_Type)","v":"Bare"}]
["Field\\Prior_Land_Use",2,"Forest/fallow",5,null,null,null,"Field_Practices\\In_Row",10,0,10,{"$f":"IF(ISBLANK(sel_Field_Practices\\In_Row),\"\",sel_Field_Practices\\In_Row)","v":"Weedy"}]
["Field\\Prior_Land_Use",3,"Turf",0,null,null,null,"Field_Practices\\Row_Middles",10,-5,10,{"$f":"IF(ISBLANK(sel_Field_Practices\\Row_Middles),\"\",sel_Field_Practices\\Row_Middles)","v":"Weedy"}]
["Field_Practices\\Bed_Type",1,"Bare",10,null,null,null,"Field_Practices\\Irrigation",5,0,5,{"$f":"IF(ISBLANK(sel_Field_Practices\\Irrigation),\"\",sel_Field_Practices\\Irrigation)","v":"Overhead"}]
["Field_Practices\\Bed_Type",2,"Bark/Mulch",5]
["Field_Practices\\Bed_Type",3,"Plastic/Fabric",0,null,null,null,"Total",{"$f":"SUMIF(I3:I11,\">0\")","v":100},{"$f":"SUMIF(J3:J11,\">0\")","v":10},{"$f":"MAX(WABDK_MinRiskIndex,SUM(K3:K11))","v":90}]
["Field_Practices\\In_Row",1,"Weedy",10]
["Field_Practices\\In_Row",2,"Cover crop",5,null,null,null,"High Risk Index",70]
["Field_Practices\\In_Row",3,"Weed-free",0,null,null,null,"Moderate Risk Index",40]
["Field_Practices\\Irrigation",1,"Drip|Overhead",5]
["Field_Practices\\Irrigation",2,"None",0]
["Field_Practices\\Row_Middles",1,"Weedy",10]
["Field_Practices\\Row_Middles",2,"Cover crop",5]
["Field_Practices\\Row_Middles",3,"Weed-free",0]
["Field_Practices\\Row_Middles",4,"Tilled",-5]
["Weed_History\\Dock",1,"Within last 2 years",15]
["Weed_History\\Dock",2,"Within 2 to 5 years",10]
["Weed_History\\Dock",3,"More than 5 years ago",5]
["Weed_History\\Dock",4,"Never",0]
["Weed_Management\\Herbicide_Applications",1,"None",15]
["Weed_Management\\Herbicide_Applications",2,"1 recommended",5]
["Weed_Management\\Herbicide_Applications",3,"2 recommended",-5]
["Weed_Management\\Herbicide_Applications",4,"3 recommended|4 or more recommended",-10]

{"sheet":"WPD","index":17,"n_rows":28,"n_cols":12,"rows_kept":28,"cut":false,"hidden":true,"merged":[[0,0,0,3]]}
["Dandelion"]
["Category","Risk Level","Risk Level Description","Points",null,null,null,"Category","Max","Min","Risk","Selection"]
["Crop\\Age",1,"7 years or older",15,null,null,null,"Crop\\Age",15,10,{"$f":"getRiskValue(\"A:A\",H3,J3,L3,\"Single\")","v":10},{"$f":"IF(ISBLANK(sel_Crop\\Age),\"\",sel_Crop\\Age)","v":"1 to 3 years"}]
["Crop\\Age",2,"1 to 3 years|4 to 6 years",10,null,null,null,"Weed_History\\Dandelion",15,0,15,{"$f":"IF(ISBLANK(sel_Weed_History\\Dandelion),\"\",sel_Weed_History\\Dandelion)","v":"Within last 2 years"}]
["Crop_Practices\\Pruning",1,"Summer hedge",10,null,null,null,"Weed_Management\\Herbicide_Applications",15,-15,15,{"$f":"IF(ISBLANK(sel_Weed_Management\\Herbicide_Applications),\"\",sel_Weed_Management\\Herbicide_Applications)","v":"None"}]
["Crop_Practices\\Pruning",2,"Never|Winter hedge|By hand",5,null,null,null,"Crop_Practices\\Pruning",10,5,10,{"$f":"IF(ISBLANK(sel_Crop_Practices\\Pruning),\"\",sel_Crop_Practices\\Pruning)","v":"Summer hedge"}]
["Field\\Prior_Land_Use",1,"Turf",10,null,null,null,"Field\\Prior_Land_Use",10,0,10,{"$f":"IF(ISBLANK(sel_Field\\Prior_Land_Use),\"\",sel_Field\\Prior_Land_Use)","v":"Turf"}]
["Field\\Prior_Land_Use",2,"Forest/fallow",5,null,null,null,"Field_Practices\\Bed_Type",10,0,10,{"$f":"IF(ISBLANK(sel_Field_Practices\\Bed_Type),\"\",sel_Field_Practices\\Bed_Type)","v":"Bare"}]
["Field\\Prior_Land_Use",3,"Cultivated",0,null,null,null,"Field_Practices\\In_Row",10,0,10,{"$f":"IF(ISBLANK(sel_Field_Practices\\In_Row),\"\",sel_Field_Practices\\In_Row)","v":"Weedy"}]
["Field_Practices\\Bed_Type",1,"Bare",10,null,null,null,"Field_Practices\\Row_Middles",10,-5,10,{"$f":"IF(ISBLANK(sel_Field_Practices\\Row_Middles),\"\",sel_Field_Practices\\Row_Middles)","v":"Weedy"}]
["Field_Practices\\Bed_Type",2,"Bark/Mulch",5,null,null,null,"Field_Practices\\Irrigation",5,0,5,{"$f":"IF(ISBLANK(sel_Field_Practices\\Irrigation),\"\",sel_Field_Practices\\Irrigation)","v":"Overhead"}]
["Field_Practices\\Bed_Type",3,"Plastic/Fabric",0]
["Field_Practices\\In_Row",1,"Weedy|Cover crop",10,null,null,null,"Total",{"$f":"SUMIF(I3:I11,\">0\")","v":100},{"$f":"SUMIF(J3:J11,\">0\")","v":15},{"$f":"MAX(WPD_MinRiskIndex,SUM(K3:K11))","v":95}]
["Field_Practices\\In_Row",2,"Weed-free",0]
["Field_Practices\\Irrigation",1,"Drip|Overhead",5,null,null,null,"High Risk Index",75]
["Field_Practices\\Irrigation",2,"None",0,null,null,null,"Moderate Risk Index",45]
["Field_Practices\\Row_Middles",1,"Weedy|Cover crop",10]
["Field_Practices\\Row_Middles",2,"Weed-free",0]
["Field_Practices\\Row_Middles",3,"Tilled",-5]
["Weed_History\\Dandelion",1,"Within last 2 years",15]
["Weed_History\\Dandelion",2,"Within 2 to 5 years",10]
["Weed_History\\Dandelion",3,"More than 5 years ago",5]
["Weed_History\\Dandelion",4,"Never",0]
["Weed_Management\\Herbicide_Applications",1,"None",15]
["Weed_Management\\Herbicide_Applications",2,"1 recommended",5]
["Weed_Management\\Herbicide_Applications",3,"2 recommended",-5]
["Weed_Management\\Herbicide_Applications",4,"3 recommended",-10]
["Weed_Management\\Herbicide_Applications",5,"4 or more recommended",-15]

{"sheet":"WPSMX","index":18,"n_rows":21,"n_cols":12,"rows_kept":21,"cut":false,"hidden":true,"merged":[[0,0,0,3]]}
["Smilax"]
["Category","Risk Level","Risk Level Description","Points",null,null,null,"Category","Max","Min","Risk","Selection"]
["Crop\\Age",1,"7 years or older",15,null,null,null,"Crop\\Age",15,10,{"$f":"getRiskValue(\"A:A\",H3,J3,L3,\"Single\")","v":10},{"$f":"IF(ISBLANK(sel_Crop\\Age),\"\",sel_Crop\\Age)","v":"1 to 3 years"}]
["Crop\\Age",2,"1 to 3 years|4 to 6 years",10,null,null,null,"Field\\Prior_Land_Use",15,0,0,{"$f":"IF(ISBLANK(sel_Field\\Prior_Land_Use),\"\",sel_Field\\Prior_Land_Use)","v":"Turf"}]
["Field\\Prior_Land_Use",1,"Forest/fallow",15,null,null,null,"Field_Practices\\Bed_Type",15,5,15,{"$f":"IF(ISBLANK(sel_Field_Practices\\Bed_Type),\"\",sel_Field_Practices\\Bed_Type)","v":"Bare"}]
["Field\\Prior_Land_Use",2,"Cultivated|Turf",0,null,null,null,"Weed_History\\Smilax",15,0,15,{"$f":"IF(ISBLANK(sel_Weed_History\\Smilax),\"\",sel_Weed_History\\Smilax)","v":"Within last 2 years"}]
["Field_Practices\\Bed_Type",1,"Bare",15,null,null,null,"Weed_Management\\Herbicide_Applications",15,5,15,{"$f":"IF(ISBLANK(sel_Weed_Management\\Herbicide_Applications),\"\",sel_Weed_Management\\Herbicide_Applications)","v":"None"}]
["Field_Practices\\Bed_Type",2,"Bark/Mulch|Plastic/Fabric",5,null,null,null,"Field_Practices\\In_Row",10,0,10,{"$f":"IF(ISBLANK(sel_Field_Practices\\In_Row),\"\",sel_Field_Practices\\In_Row)","v":"Weedy"}]
["Field_Practices\\In_Row",1,"Weedy|Cover crop",10,null,null,null,"Field_Practices\\Irrigation",5,0,5,{"$f":"IF(ISBLANK(sel_Field_Practices\\Irrigation),\"\",sel_Field_Practices\\Irrigation)","v":"Overhead"}]
["Field_Practices\\In_Row",2,"Weed-free",0,null,null,null,"Field_Practices\\Row_Middles",5,-5,5,{"$f":"IF(ISBLANK(sel_Field_Practices\\Row_Middles),\"\",sel_Field_Practices\\Row_Middles)","v":"Weedy"}]
["Field_Practices\\Irrigation",1,"Drip|Overhead",5]
["Field_Practices\\Irrigation",2,"None",0,null,null,null,"Total",{"$f":"SUMIF(I3:I10,\">0\")","v":95},{"$f":"SUMIF(J3:J10,\">0\")","v":20},{"$f":"MAX(WPSMX_MinRiskIndex,SUM(K3:K10))","v":75}]
["Field_Practices\\Row_Middles",1,"Weedy|Cover crop",5]
["Field_Practices\\Row_Middles",2,"Weed-free",0,null,null,null,"High Risk Index",70]
["Field_Practices\\Row_Middles",3,"Tilled",-5,null,null,null,"Moderate Risk Index",35]
["Weed_History\\Smilax",1,"Within last 2 years",15]
["Weed_History\\Smilax",2,"Within 3 to 5 years",10]
["Weed_History\\Smilax",3,"More than 5 years ago",5]
["Weed_History\\Smilax",4,"Never",0]
["Weed_Management\\Herbicide_Applications",1,"None",15]
["Weed_Management\\Herbicide_Applications",2,"1 recommended|2 recommended|3 recommended|4 or more recommended",5]

{"sheet":"DMB","index":19,"n_rows":12,"n_cols":12,"rows_kept":12,"cut":false,"hidden":true,"merged":[[0,0,0,3]]}
["Mummy Berry"]
["Category","Risk Level","Risk Level Description","Points",null,null,null,"Category","Max","Min","Risk","Selection"]
["Crop_Practices\\Infected_Fruit_Handling",1,"Left in field",10,null,null,null,"Pest_Management_Chemical\\Fungicides",30,0,{"$f":"getRiskValue(\"A:A\",H3,J3,L3,\"Single\")","v":30},{"$f":"IF(ISBLANK(sel_Pest_Management_Chemical\\Fungicides),\"\",sel_Pest_Management_Chemical\\Fungicides)","v":"None"}]
["Crop_Practices\\Infected_Fruit_Handling",2,"Removed from field",-10,null,null,null,"Pest_History_Diseases\\Mummy_Berry",15,5,{"$f":"getRiskValue(\"A:A\",H4,J4,L4,\"Single\")","v":15},{"$f":"IF(ISBLANK(sel_Pest_History_Diseases\\Mummy_Berry),\"\",sel_Pest_History_Diseases\\Mummy_Berry)","v":"Within last 2 years"}]
["Pest_History_Diseases\\Mummy_Berry",1,"Within last 2 years",15,null,null,null,"Crop_Practices\\Infected_Fruit_Handling",10,-10,{"$f":"getRiskValue(\"A:A\",H5,J5,L5,\"Single\")","v":10},{"$f":"IF(ISBLANK(sel_Crop_Practices\\Infected_Fruit_Handling),\"\",sel_Crop_Practices\\Infected_Fruit_Handling)","v":"Left in field"}]
["Pest_History_Diseases\\Mummy_Berry",2,"Within 2 to 5 years",10]
["Pest_History_Diseases\\Mummy_Berry",3,"Never|More than 5 years",5,null,null,null,"Total",{"$f":"SUMIF(I3:I5,\">0\")","v":55},{"$f":"SUMIF(J3:J5,\">0\")","v":5},{"$f":"MAX(DMB_MinRiskIndex,SUM(K3:K5))","v":55}]
["Pest_Management_Chemical\\Fungicides",1,"None",30]
["Pest_Management_Chemical\\Fungicides",2,"1 recommended",15,null,null,null,"High Risk Index",35]
["Pest_Management_Chemical\\Fungicides",3,"2 to 3 recommended",10,null,null,null,"Moderate Risk Index",15]
["Pest_Management_Chemical\\Fungicides",4,"4 to 5 recommended",5]
["Pest_Management_Chemical\\Fungicides",5,"6 or more recommended",0]

{"sheet":"DSLS","index":20,"n_rows":25,"n_cols":12,"rows_kept":25,"cut":false,"hidden":true,"merged":[[0,0,0,3]]}
["Septoria Leaf Spot"]
["Category","Risk Level","Risk Level Description","Points",null,null,null,"Category","Max","Min","Risk","Selection"]
["Crop\\Age",1,"1 to 3 years",15,null,null,null,"Pest_Management_Chemical\\Fungicides",30,0,{"$f":"getRiskValue(\"A:A\",H3,J3,L3,\"Single\")","v":30},{"$f":"IF(ISBLANK(sel_Pest_Management_Chemical\\Fungicides),\"\",sel_Pest_Management_Chemical\\Fungicides)","v":"None"}]
["Crop\\Age",2,"4 to 6 years",10,null,null,null,"Crop\\Age",15,5,15,{"$f":"IF(ISBLANK(sel_Crop\\Age),\"\",sel_Crop\\Age)","v":"1 to 3 years"}]
["Crop\\Age",3,"7 years or older",5,null,null,null,"Crop\\Type",15,0,0,{"$f":"IF(ISBLANK(sel_Crop\\Type),\"\",sel_Crop\\Type)","v":"Rabbiteye"}]
["Crop\\Type",1,"S. Highbush (cv. Star)",15,null,null,null,"Pest_History_Diseases\\Septoria_Leaf_Spot",15,0,15,{"$f":"IF(ISBLANK(sel_Pest_History_Diseases\\Septoria_Leaf_Spot),\"\",sel_Pest_History_Diseases\\Septoria_Leaf_Spot)","v":"Within last 2 years"}]
["Crop\\Type",2,"Southern Highbush",5,null,null,null,"Crop_Practices\\Pruning",10,0,0,{"$f":"IF(ISBLANK(sel_Crop_Practices\\Pruning),\"\",sel_Crop_Practices\\Pruning)","v":"Summer hedge"}]
["Crop\\Type",3,"Rabbiteye",0,null,null,null,"Field_Practices\\Bed_Type",10,5,10,{"$f":"IF(ISBLANK(sel_Field_Practices\\Bed_Type),\"\",sel_Field_Practices\\Bed_Type)","v":"Bare"}]
["Crop_Practices\\Pruning",1,"Never|Winter hedge",10,null,null,null,"Field_Practices\\Irrigation",10,0,10,{"$f":"IF(ISBLANK(sel_Field_Practices\\Irrigation),\"\",sel_Field_Practices\\Irrigation)","v":"Overhead"}]
["Crop_Practices\\Pruning",2,"By hand",5]
["Crop_Practices\\Pruning",3,"Summer hedge",0,null,null,null,"Total",{"$f":"SUMIF(I3:I9,\">0\")","v":105},{"$f":"SUMIF(J3:J9,\">0\")","v":10},{"$f":"MAX(DSLS_MinRiskIndex,SUM(K3:K9))","v":80}]
["Field_Practices\\Bed_Type",1,"Bare",10]
["Field_Practices\\Bed_Type",2,"Bark/Mulch|Plastic/Fabric",5,null,null,null,"High Risk Index",70]
["Field_Practices\\Irrigation",1,"Overhead",10,null,null,null,"Moderate Risk Index",40]
["Field_Practices\\Irrigation",2,"Drip",5]
["Field_Practices\\Irrigation",3,"None",0]
["Pest_History_Diseases\\Septoria_Leaf_Spot",1,"Within last 2 years",15]
["Pest_History_Diseases\\Septoria_Leaf_Spot",2,"Within 2 to 5 years",10]
["Pest_History_Diseases\\Septoria_Leaf_Spot",3,"More than 5 years",5]
["Pest_History_Diseases\\Septoria_Leaf_Spot",4,"Never",0]
["Pest_Management_Chemical\\Fungicides",1,"None",30]
["Pest_Management_Chemical\\Fungicides",2,"1 recommended",15]
["Pest_Management_Chemical\\Fungicides",3,"2 to 3 recommended",10]
["Pest_Management_Chemical\\Fungicides",4,"4 to 5 recommended",5]
["Pest_Management_Chemical\\Fungicides",5,"6 or more recommended",0]

{"sheet":"DBSB","index":21,"n_rows":25,"n_cols":12,"rows_kept":25,"cut":false,"hidden":true,"merged":[[0,0,0,3]]}
["Botryosphaeria Stem Blight"]
["Category","Risk Level","Risk Level Description","Points",null,null,null,"Category","Max","Min","Risk","Selection"]
["Crop\\Age",1,"1 to 3 years",15,null,null,null,"Crop\\Age",15,5,{"$f":"getRiskValue(\"A:A\",H3,J3,L3,\"Single\")","v":15},{"$f":"IF(ISBLANK(sel_Crop\\Age),\"\",sel_Crop\\Age)","v":"1 to 3 years"}]
["Crop\\Age",2,"4 to 6 years|7 years or older",5,null,null,null,"Crop_Practices\\Pruning",15,0,15,{"$f":"IF(ISBLANK(sel_Crop_Practices\\Pruning),\"\",sel_Crop_Practices\\Pruning)","v":"Summer hedge"}]
["Crop\\Type",1,"Southern Highbush|S. Highbush (cv. Star)",10,null,null,null,"Field\\Soil_Texture",15,5,5,{"$f":"IF(ISBLANK(sel_Field\\Soil_Texture),\"\",sel_Field\\Soil_Texture)","v":"Clay"}]
["Crop\\Type",2,"Rabbiteye",5,null,null,null,"Pest_History_Diseases\\Botryosphaeria_Stem_Blight",15,0,15,{"$f":"IF(ISBLANK(sel_Pest_History_Diseases\\Botryosphaeria_Stem_Blight),\"\",sel_Pest_History_Diseases\\Botryosphaeria_Stem_Blight)","v":"Within last 2 years"}]
["Crop_Practices\\Pruning",1,"Summer hedge",15,null,null,null,"Crop\\Type",10,5,5,{"$f":"IF(ISBLANK(sel_Crop\\Type),\"\",sel_Crop\\Type)","v":"Rabbiteye"}]
["Crop_Practices\\Pruning",2,"Winter hedge",10,null,null,null,"Field\\Soil_Drainage",10,0,10,{"$f":"IF(ISBLANK(sel_Field\\Soil_Drainage),\"\",sel_Field\\Soil_Drainage)","v":"Poor"}]
["Crop_Practices\\Pruning",3,"By hand",5,null,null,null,"Field_Practices\\Bed_Type",10,-5,10,{"$f":"IF(ISBLANK(sel_Field_Practices\\Bed_Type),\"\",sel_Field_Practices\\Bed_Type)","v":"Bare"}]
["Crop_Practices\\Pruning",4,"Never",0,null,null,null,"Field_Practices\\Irrigation",10,-5,5,{"$f":"IF(ISBLANK(sel_Field_Practices\\Irrigation),\"\",sel_Field_Practices\\Irrigation)","v":"Overhead"}]
["Field\\Soil_Drainage",1,"Poor",10]
["Field\\Soil_Drainage",2,"Moderate",5,null,null,null,"Total",{"$f":"SUMIF(I3:I10,\">0\")","v":100},{"$f":"SUMIF(J3:J10,\">0\")","v":15},{"$f":"MAX(DBSB_MinRiskIndex,SUM(K3:K10))","v":80}]
["Field\\Soil_Drainage",3,"Good",0]
["Field\\Soil_Texture",1,"Sandy",15,null,null,null,"High Risk Index",55]
["Field\\Soil_Texture",2,"Sandy loam|Clay loam",10,null,null,null,"Moderate Risk Index",35]
["Field\\Soil_Texture",3,"Clay",5]
["Field_Practices\\Bed_Type",1,"Bare",10]
["Field_Practices\\Bed_Type",2,"Bark/Mulch|Plastic/Fabric",-5]
["Field_Practices\\Irrigation",1,"None",10]
["Field_Practices\\Irrigation",2,"Overhead",5]
["Field_Practices\\Irrigation",3,"Drip",-5]
["Pest_History_Diseases\\Botryosphaeria_Stem_Blight",1,"Within last 2 years",15]
["Pest_History_Diseases\\Botryosphaeria_Stem_Blight",2,"Within 2 to 5 years",10]
["Pest_History_Diseases\\Botryosphaeria_Stem_Blight",3,"More than 5 years ago",5]
["Pest_History_Diseases\\Botryosphaeria_Stem_Blight",4,"Never",0]

{"sheet":"DPHYRR","index":22,"n_rows":25,"n_cols":12,"rows_kept":25,"cut":false,"hidden":true,"merged":[[0,0,0,3]]}
["Phytophthora Root Rot"]
["Category","Risk Level","Risk Level Description","Points",null,null,null,"Category","Max","Min","Risk","Selection"]
["Crop\\Type",1,"Southern Highbush|S. Highbush (cv. Star)",10,null,null,null,"Pest_History_Diseases\\Phytophthora_Root_Rot",20,0,{"$f":"getRiskValue(\"A:A\",H3,J3,L3,\"Single\")","v":20},{"$f":"IF(ISBLANK(sel_Pest_History_Diseases\\Phytophthora_Root_Rot),\"\",sel_Pest_History_Diseases\\Phytophthora_Root_Rot)","v":"Within last 2 years"}]
["Crop\\Type",2,"Rabbiteye",5,null,null,null,"Field\\Soil_Drainage",15,0,15,{"$f":"IF(ISBLANK(sel_Field\\Soil_Drainage),\"\",sel_Field\\Soil_Drainage)","v":"Poor"}]
["Field\\Soil_Drainage",1,"Poor",15,null,null,null,"Field\\Soil_Texture",15,0,15,{"$f":"IF(ISBLANK(sel_Field\\Soil_Texture),\"\",sel_Field\\Soil_Texture)","v":"Clay"}]
["Field\\Soil_Drainage",2,"Moderate",5,null,null,null,"Crop\\Type",10,5,5,{"$f":"IF(ISBLANK(sel_Crop\\Type),\"\",sel_Crop\\Type)","v":"Rabbiteye"}]
["Field\\Soil_Drainage",3,"Good",0,null,null,null,"Field_Practices\\Bed_Type",10,0,0,{"$f":"IF(ISBLANK(sel_Field_Practices\\Bed_Type),\"\",sel_Field_Practices\\Bed_Type)","v":"Bare"}]
["Field\\Soil_Texture",1,"Clay",15,null,null,null,"Field_Practices\\Irrigation",10,0,10,{"$f":"IF(ISBLANK(sel_Field_Practices\\Irrigation),\"\",sel_Field_Practices\\Irrigation)","v":"Overhead"}]
["Field\\Soil_Texture",2,"Clay loam",10,null,null,null,"Pest_Management_Chemical\\Fungicides",10,-5,10,{"$f":"IF(ISBLANK(sel_Pest_Management_Chemical\\Fungicides),\"\",sel_Pest_Management_Chemical\\Fungicides)","v":"None"}]
["Field\\Soil_Texture",3,"Sandy loam",5,null,null,null,"Pest_Management_Chemical\\Fumigation",0,-10,0,{"$f":"IF(ISBLANK(sel_Pest_Management_Chemical\\Fumigation),\"\",sel_Pest_Management_Chemical\\Fumigation)","v":"No"}]
["Field\\Soil_Texture",4,"Sandy",0]
["Field_Practices\\Bed_Type",1,"Bark/Mulch",10,null,null,null,"Total",{"$f":"SUMIF(I3:I10,\">0\")","v":90},{"$f":"SUMIF(J3:J10,\">0\")","v":5},{"$f":"MAX(DPHYRR_MinRiskIndex,SUM(K3:K10))","v":75}]
["Field_Practices\\Bed_Type",2,"Bare|Plastic/Fabric",0]
["Field_Practices\\Irrigation",1,"Overhead",10,null,null,null,"High Risk Index",65]
["Field_Practices\\Irrigation",2,"Drip",5,null,null,null,"Moderate Risk Index",40]
["Field_Practices\\Irrigation",3,"None",0]
["Pest_History_Diseases\\Phytophthora_Root_Rot",1,"Within last 2 years",20]
["Pest_History_Diseases\\Phytophthora_Root_Rot",2,"Within 2 to 3 yeares",15]
["Pest_History_Diseases\\Phytophthora_Root_Rot",3,"More than 5 years ago",10]
["Pest_History_Diseases\\Phytophthora_Root_Rot",4,"Never",0]
["Pest_Management_Chemical\\Fumigation",1,"No",0]
["Pest_Management_Chemical\\Fumigation",2,"Yes",-10]
["Pest_Management_Chemical\\Fungicides",1,"None",10]
["Pest_Management_Chemical\\Fungicides",2,"1 recommended",5]
["Pest_Management_Chemical\\Fungicides",3,"2 to 3 recommended|4 to 5 recommended|6 or more recommended",-5]

{"sheet":"IBBMG","index":23,"n_rows":12,"n_cols":12,"rows_kept":12,"cut":false,"hidden":true,"merged":[[0,0,0,3]]}
["Blueberry Maggot"]
["Category","Risk Level","Risk Level Description","Points",null,null,null,"Category","Max","Min","Risk","Selection"]
["Pest_History_Insects\\Blueberry_Maggot",1,"Within last 2 years",20,null,null,null,"Pest_History_Insects\\Blueberry_Maggot",20,0,{"$f":"getRiskValue(\"A:A\",H3,J3,L3,\"Single\")","v":20},{"$f":"IF(ISBLANK(sel_Pest_History_Insects\\Blueberry_Maggot),\"\",sel_Pest_History_Insects\\Blueberry_Maggot)","v":"Within last 2 years"}]
["Pest_History_Insects\\Blueberry_Maggot",2,"Within 2 to 5 years",15,null,null,null,"Pest_Management_Chemical\\Insecticides",20,-10,{"$f":"getRiskValue(\"A:A\",H4,J4,L4,\"Single\")","v":20},{"$f":"IF(ISBLANK(sel_Pest_Management_Chemical\\Insecticides),\"\",sel_Pest_Management_Chemical\\Insecticides)","v":"None"}]
["Pest_History_Insects\\Blueberry_Maggot",3,"More than 5 years ago",5,null,null,null,"Pest_Management_Traps\\Blueberry_Maggot_Fly",10,-10,{"$f":"getRiskValue(\"A:A\",H5,J5,L5,\"Single\")","v":10},{"$f":"IF(ISBLANK(sel_Pest_Management_Traps\\Blueberry_Maggot_Fly),\"\",sel_Pest_Management_Traps\\Blueberry_Maggot_Fly)","v":"Not used"}]
["Pest_History_Insects\\Blueberry_Maggot",4,"Never",0]
["Pest_Management_Chemical\\Insecticides",1,"None",20,null,null,null,"Total",{"$f":"SUMIF(I3:I5,\">0\")","v":50},{"$f":"SUMIF(J3:J5,\">0\")","v":0},{"$f":"MAX(IBBMG_MinRiskIndex,SUM(K3:K5))","v":50}]
["Pest_Management_Chemical\\Insecticides",2,"1 to 2 recommended",5]
["Pest_Management_Chemical\\Insecticides",3,"3 to 4 recommended",-5,null,null,null,"High Risk Index",20]
["Pest_Management_Chemical\\Insecticides",4,"5 or more recommended",-10,null,null,null,"Moderate Risk Index",10]
["Pest_Management_Traps\\Blueberry_Maggot_Fly",1,"Not used",10]
["Pest_Management_Traps\\Blueberry_Maggot_Fly",2,"Used",-10]

{"sheet":"WABMG","index":24,"n_rows":31,"n_cols":12,"rows_kept":31,"cut":false,"hidden":true,"merged":[[0,0,0,3]]}
["Morningglory"]
["Category","Risk Level","Risk Level Description","Points",null,null,null,"Category","Max","Min","Risk","Selection"]
["Crop\\Age",1,"1 to 3 years",15,null,null,null,"Weed_History\\Morningglory",20,0,{"$f":"getRiskValue(\"A:A\",H3,J3,L3,\"Single\")","v":20},{"$f":"IF(ISBLANK(sel_Weed_History\\Morningglory),\"\",sel_Weed_History\\Morningglory)","v":"Within last 2 years"}]
["Crop\\Age",2,"4 to 6 years",10,null,null,null,"Crop\\Age",15,5,15,{"$f":"IF(ISBLANK(sel_Crop\\Age),\"\",sel_Crop\\Age)","v":"1 to 3 years"}]
["Crop\\Age",3,"7 years or older",5,null,null,null,"Weed_Management\\Herbicide_Applications",15,-15,15,{"$f":"IF(ISBLANK(sel_Weed_Management\\Herbicide_Applications),\"\",sel_Weed_Management\\Herbicide_Applications)","v":"None"}]
["Crop_Practices\\Pruning",1,"Summer hedge",10,null,null,null,"Crop_Practices\\Pruning",10,5,10,{"$f":"IF(ISBLANK(sel_Crop_Practices\\Pruning),\"\",sel_Crop_Practices\\Pruning)","v":"Summer hedge"}]
["Crop_Practices\\Pruning",2,"Never|Winter hedge|By hand",5,null,null,null,"Field\\Prior_Land_Use",10,0,0,{"$f":"IF(ISBLANK(sel_Field\\Prior_Land_Use),\"\",sel_Field\\Prior_Land_Use)","v":"Turf"}]
["Field\\Prior_Land_Use",1,"Cultivated",10,null,null,null,"Field_Practices\\Bed_Type",10,0,10,{"$f":"IF(ISBLANK(sel_Field_Practices\\Bed_Type),\"\",sel_Field_Practices\\Bed_Type)","v":"Bare"}]
["Field\\Prior_Land_Use",2,"Forest/fallow",5,null,null,null,"Field_Practices\\In_Row",10,0,10,{"$f":"IF(ISBLANK(sel_Field_Practices\\In_Row),\"\",sel_Field_Practices\\In_Row)","v":"Weedy"}]
["Field\\Prior_Land_Use",3,"Turf",0,null,null,null,"Field_Practices\\Row_Middles",10,-5,10,{"$f":"IF(ISBLANK(sel_Field_Practices\\Row_Middles),\"\",sel_Field_Practices\\Row_Middles)","v":"Weedy"}]
["Field_Practices\\Bed_Type",1,"Bare",10,null,null,null,"Field_Practices\\Irrigation",5,0,5,{"$f":"IF(ISBLANK(sel_Field_Practices\\Irrigation),\"\",sel_Field_Practices\\Irrigation)","v":"Overhead"}]
["Field_Practices\\Bed_Type",2,"Bark/Mulch",5]
["Field_Practices\\Bed_Type",3,"Plastic/Fabric",0,null,null,null,"Total",{"$f":"SUMIF(I3:I11,\">0\")","v":105},{"$f":"SUMIF(J3:J11,\">0\")","v":10},{"$f":"MAX(WABMG_MinRiskIndex,SUM(K3:K11))","v":95}]
["Field_Practices\\In_Row",1,"Weedy",10]
["Field_Practices\\In_Row",2,"Cover crop",5,null,null,null,"High Risk Index",75]
["Field_Practices\\In_Row",3,"Weed-free",0,null,null,null,"Moderate Risk Index",40]
["Field_Practices\\Irrigation",1,"Drip|Overhead",5]
["Field_Practices\\Irrigation",2,"None",0]
["Field_Practices\\Row_Middles",1,"Weedy",10]
["Field_Practices\\Row_Middles",2,"Cover crop",5]
["Field_Practices\\Row_Middles",3,"Weed-free",0]
["Field_Practices\\Row_Middles",4,"Tilled",-5]
["Weed_History\\Morningglory",1,"Within last 2 years",20]
["Weed_History\\Morningglory",2,"Within 2 to 5 years",10]
["Weed_History\\Morningglory",3,"More than 5 years ago",5]
["Weed_History\\Morningglory",4,"Never",0]
["Weed_Management\\Herbicide_Applications",1,"None",15]
["Weed_Management\\Herbicide_Applications",2,"1 recommended",5]
["Weed_Management\\Herbicide_Applications",3,"2 recommended",-5]
["Weed_Management\\Herbicide_Applications",4,"3 recommended",-10]
["Weed_Management\\Herbicide_Applications",5,"4 or more recommended",-15]

{"sheet":"WABPW","index":25,"n_rows":28,"n_cols":12,"rows_kept":28,"cut":false,"hidden":true,"merged":[[0,0,0,3]]}
["Pigweed"]
["Category","Risk Level","Risk Level Description","Points",null,null,null,"Category","Max","Min","Risk","Selection"]
["Crop\\Age",1,"1 to 3 years",15,null,null,null,"Weed_History\\Morningglory",20,0,{"$f":"getRiskValue(\"A:A\",H3,J3,L3,\"Single\")","v":20},{"$f":"IF(ISBLANK(sel_Weed_History\\Morningglory),\"\",sel_Weed_History\\Morningglory)","v":"Within last 2 years"}]
["Crop\\Age",2,"4 to 6 years",10,null,null,null,"Crop\\Age",15,5,15,{"$f":"IF(ISBLANK(sel_Crop\\Age),\"\",sel_Crop\\Age)","v":"1 to 3 years"}]
["Crop\\Age",3,"7 years or older",5,null,null,null,"Field\\Prior_Land_Use",15,5,5,{"$f":"IF(ISBLANK(sel_Field\\Prior_Land_Use),\"\",sel_Field\\Prior_Land_Use)","v":"Turf"}]
["Crop_Practices\\Pruning",1,"Summer hedge",10,null,null,null,"Weed_Management\\Herbicide_Applications",15,-15,15,{"$f":"IF(ISBLANK(sel_Weed_Management\\Herbicide_Applications),\"\",sel_Weed_Management\\Herbicide_Applications)","v":"None"}]
["Crop_Practices\\Pruning",2,"Never|Winter hedge|By hand",5,null,null,null,"Crop_Practices\\Pruning",10,5,10,{"$f":"IF(ISBLANK(sel_Crop_Practices\\Pruning),\"\",sel_Crop_Practices\\Pruning)","v":"Summer hedge"}]
["Field\\Prior_Land_Use",1,"Cultivated",15,null,null,null,"Field_Practices\\Bed_Type",10,0,10,{"$f":"IF(ISBLANK(sel_Field_Practices\\Bed_Type),\"\",sel_Field_Practices\\Bed_Type)","v":"Bare"}]
["Field\\Prior_Land_Use",2,"Forest/fallow|Turf",5,null,null,null,"Field_Practices\\In_Row",10,0,10,{"$f":"IF(ISBLANK(sel_Field_Practices\\In_Row),\"\",sel_Field_Practices\\In_Row)","v":"Weedy"}]
["Field_Practices\\Bed_Type",1,"Bare",10,null,null,null,"Field_Practices\\Row_Middles",10,-5,10,{"$f":"IF(ISBLANK(sel_Field_Practices\\Row_Middles),\"\",sel_Field_Practices\\Row_Middles)","v":"Weedy"}]
["Field_Practices\\Bed_Type",2,"Bark/Mulch",5,null,null,null,"Field_Practices\\Irrigation",5,0,5,{"$f":"IF(ISBLANK(sel_Field_Practices\\Irrigation),\"\",sel_Field_Practices\\Irrigation)","v":"Overhead"}]
["Field_Practices\\Bed_Type",3,"Plastic/Fabric",0]
["Field_Practices\\In_Row",1,"Weedy|Cover crop",10,null,null,null,"Total",{"$f":"SUMIF(I3:I11,\">0\")","v":110},{"$f":"SUMIF(J3:J11,\">0\")","v":15},{"$f":"MAX(WABPW_MinRiskIndex,SUM(K3:K11))","v":100}]
["Field_Practices\\In_Row",2,"Weed-free",0]
["Field_Practices\\Irrigation",1,"Drip|Overhead",5,null,null,null,"High Risk Index",65]
["Field_Practices\\Irrigation",2,"None",0,null,null,null,"Moderate Risk Index",40]
["Field_Practices\\Row_Middles",1,"Weedy|Cover crop",10]
["Field_Practices\\Row_Middles",2,"Weed-free",0]
["Field_Practices\\Row_Middles",3,"Tilled",-5]
["Weed_History\\Morningglory",1,"Within last 2 years",20]
["Weed_History\\Morningglory",2,"Within 2 to 5 years",15]
["Weed_History\\Morningglory",3,"More than 5 years ago",10]
["Weed_History\\Morningglory",4,"Never",0]
["Weed_Management\\Herbicide_Applications",1,"None",15]
["Weed_Management\\Herbicide_Applications",2,"1 recommended",5]
["Weed_Management\\Herbicide_Applications",3,"2 recommended",-5]
["Weed_Management\\Herbicide_Applications",4,"3 recommended",-10]
["Weed_Management\\Herbicide_Applications",5,"4 or more recommended",-15]

{"sheet":"WABRW","index":26,"n_rows":30,"n_cols":12,"rows_kept":30,"cut":false,"hidden":true,"merged":[[0,0,0,3]]}
["Ragweed"]
["Category","Risk Level","Risk Level Description","Points",null,null,null,"Category","Max","Min","Risk","Selection"]
["Crop\\Age",1,"1 to 3 years",15,null,null,null,"Weed_History\\Ragweed",20,0,{"$f":"getRiskValue(\"A:A\",H3,J3,L3,\"Single\")","v":20},{"$f":"IF(ISBLANK(sel_Weed_History\\Ragweed),\"\",sel_Weed_History\\Ragweed)","v":"Within last 2 years"}]
["Crop\\Age",2,"4 to 6 years",10,null,null,null,"Crop\\Age",15,5,15,{"$f":"IF(ISBLANK(sel_Crop\\Age),\"\",sel_Crop\\Age)","v":"1 to 3 years"}]
["Crop\\Age",3,"7 years or older",5,null,null,null,"Field\\Prior_Land_Use",15,5,5,{"$f":"IF(ISBLANK(sel_Field\\Prior_Land_Use),\"\",sel_Field\\Prior_Land_Use)","v":"Turf"}]
["Crop_Practices\\Pruning",1,"Summer hedge",10,null,null,null,"Weed_Management\\Herbicide_Applications",15,-15,15,{"$f":"IF(ISBLANK(sel_Weed_Management\\Herbicide_Applications),\"\",sel_Weed_Management\\Herbicide_Applications)","v":"None"}]
["Crop_Practices\\Pruning",2,"Never|Winter hedge|By hand",5,null,null,null,"Crop_Practices\\Pruning",10,5,10,{"$f":"IF(ISBLANK(sel_Crop_Practices\\Pruning),\"\",sel_Crop_Practices\\Pruning)","v":"Summer hedge"}]
["Field\\Prior_Land_Use",1,"Cultivated",15,null,null,null,"Field_Practices\\Bed_Type",10,0,10,{"$f":"IF(ISBLANK(sel_Field_Practices\\Bed_Type),\"\",sel_Field_Practices\\Bed_Type)","v":"Bare"}]
["Field\\Prior_Land_Use",2,"Forest/fallow|Turf",5,null,null,null,"Field_Practices\\In_Row",10,0,10,{"$f":"IF(ISBLANK(sel_Field_Practices\\In_Row),\"\",sel_Field_Practices\\In_Row)","v":"Weedy"}]
["Field_Practices\\Bed_Type",1,"Bare",10,null,null,null,"Field_Practices\\Row_Middles",10,-5,10,{"$f":"IF(ISBLANK(sel_Field_Practices\\Row_Middles),\"\",sel_Field_Practices\\Row_Middles)","v":"Weedy"}]
["Field_Practices\\Bed_Type",2,"Bark/Mulch",5,null,null,null,"Field_Practices\\Irrigation",5,0,5,{"$f":"IF(ISBLANK(sel_Field_Practices\\Irrigation),\"\",sel_Field_Practices\\Irrigation)","v":"Overhead"}]
["Field_Practices\\Bed_Type",3,"Plastic/Fabric",0]
["Field_Practices\\In_Row",1,"Weedy",10,null,null,null,"Total",{"$f":"SUMIF(I3:I11,\">0\")","v":110},{"$f":"SUMIF(J3:J11,\">0\")","v":15},{"$f":"MAX(WABRW_MinRiskIndex,SUM(K3:K11))","v":100}]
["Field_Practices\\In_Row",2,"Cover crop",5]
["Field_Practices\\In_Row",3,"Weed-free",0,null,null,null,"High Risk Index",65]
["Field_Practices\\Irrigation",1,"Drip|Overhead",5,null,null,null,"Moderate Risk Index",40]
["Field_Practices\\Irrigation",2,"None",0]
["Field_Practices\\Row_Middles",1,"Weedy",10]
["Field_Practices\\Row_Middles",2,"Cover crop",5]
["Field_Practices\\Row_Middles",3,"Weed-free",0]
["Field_Practices\\Row_Middles",4,"Tilled",-5]
["Weed_History\\Ragweed",1,"Within last 2 years",20]
["Weed_History\\Ragweed",2,"Within 2 to 5 years",10]
["Weed_History\\Ragweed",3,"More than 5 years ago",5]
["Weed_History\\Ragweed",4,"Never",0]
["Weed_Management\\Herbicide_Applications",1,"None",15]
["Weed_Management\\Herbicide_Applications",2,"1 recommended",5]
["Weed_Management\\Herbicide_Applications",3,"2 recommended",-5]
["Weed_Management\\Herbicide_Applications",4,"3 recommended",-10]
["Weed_Management\\Herbicide_Applications",5,"4 or more recommended",-15]

{"sheet":"WPTRSAP","index":27,"n_rows":21,"n_cols":12,"rows_kept":21,"cut":false,"hidden":true,"merged":[[0,0,0,3]]}
["Tree Saplings"]
["Category","Risk Level","Risk Level Description","Points",null,null,null,"Category","Max","Min","Risk","Selection"]
["Crop\\Age",1,"7 years or older",15,null,null,null,"Crop\\Age",15,10,{"$f":"getRiskValue(\"A:A\",H3,J3,L3,\"Single\")","v":10},{"$f":"IF(ISBLANK(sel_Crop\\Age),\"\",sel_Crop\\Age)","v":"1 to 3 years"}]
["Crop\\Age",2,"1 to 3 years|4 to 6 years",10,null,null,null,"Field\\Prior_Land_Use",15,0,0,{"$f":"IF(ISBLANK(sel_Field\\Prior_Land_Use),\"\",sel_Field\\Prior_Land_Use)","v":"Turf"}]
["Field\\Prior_Land_Use",1,"Forest/fallow",15,null,null,null,"Field_Practices\\Bed_Type",15,5,15,{"$f":"IF(ISBLANK(sel_Field_Practices\\Bed_Type),\"\",sel_Field_Practices\\Bed_Type)","v":"Bare"}]
["Field\\Prior_Land_Use",2,"Cultivated|Turf",0,null,null,null,"Weed_History\\Tree_Saplings",15,0,15,{"$f":"IF(ISBLANK(sel_Weed_History\\Tree_Saplings),\"\",sel_Weed_History\\Tree_Saplings)","v":"Within last 2 years"}]
["Field_Practices\\Bed_Type",1,"Bare",15,null,null,null,"Weed_Management\\Herbicide_Applications",15,5,15,{"$f":"IF(ISBLANK(sel_Weed_Management\\Herbicide_Applications),\"\",sel_Weed_Management\\Herbicide_Applications)","v":"None"}]
["Field_Practices\\Bed_Type",2,"Bark/Mulch|Plastic/Fabric",5,null,null,null,"Field_Practices\\In_Row",10,0,10,{"$f":"IF(ISBLANK(sel_Field_Practices\\In_Row),\"\",sel_Field_Practices\\In_Row)","v":"Weedy"}]
["Field_Practices\\In_Row",1,"Weedy|Cover crop",10,null,null,null,"Field_Practices\\Irrigation",5,0,5,{"$f":"IF(ISBLANK(sel_Field_Practices\\Irrigation),\"\",sel_Field_Practices\\Irrigation)","v":"Overhead"}]
["Field_Practices\\In_Row",2,"Weed-free",0,null,null,null,"Field_Practices\\Row_Middles",5,-5,5,{"$f":"IF(ISBLANK(sel_Field_Practices\\Row_Middles),\"\",sel_Field_Practices\\Row_Middles)","v":"Weedy"}]
["Field_Practices\\Irrigation",1,"Drip|Overhead",5]
["Field_Practices\\Irrigation",2,"None",0,null,null,null,"Total",{"$f":"SUMIF(I3:I10,\">0\")","v":95},{"$f":"SUMIF(J3:J10,\">0\")","v":20},{"$f":"MAX(WPTRSAP_MinRiskIndex,SUM(K3:K10))","v":75}]
["Field_Practices\\Row_Middles",1,"Weedy|Cover crop",5]
["Field_Practices\\Row_Middles",2,"Weed-free",0,null,null,null,"High Risk Index",70]
["Field_Practices\\Row_Middles",3,"Tilled",-5,null,null,null,"Moderate Risk Index",35]
["Weed_History\\Tree_Saplings",1,"Within last 2 years",15]
["Weed_History\\Tree_Saplings",2,"Within 2 to 5 years",10]
["Weed_History\\Tree_Saplings",3,"More than 5 years ago",5]
["Weed_History\\Tree_Saplings",4,"Never",0]
["Weed_Management\\Herbicide_Applications",1,"None",15]
["Weed_Management\\Herbicide_Applications",2,"1 recommended|2 recommended|3 recommended|4 or more recommended",5]

{"sheet":"ISNSS","index":28,"n_rows":9,"n_cols":12,"rows_kept":9,"cut":false,"hidden":true,"merged":[[0,0,0,3]]}
["Sharpnose Sharpshooter"]
["Category","Risk Level","Risk Level Description","Points",null,null,null,"Category","Max","Min","Risk","Selection"]
["Pest_History_Insects\\Sharpnose_Sharpshooter",1,"Within last 2 years",15,null,null,null,"Pest_History_Insects\\Sharpnose_Sharpshooter",15,0,{"$f":"getRiskValue(\"A:A\",H3,J3,L3,\"Single\")","v":15},{"$f":"IF(ISBLANK(sel_Pest_History_Insects\\Sharpnose_Sharpshooter),\"\",sel_Pest_History_Insects\\Sharpnose_Sharpshooter)","v":"Within last 2 years"}]
["Pest_History_Insects\\Sharpnose_Sharpshooter",2,"Within 2 to 5 years",10,null,null,null,"Pest_Management_Chemical\\Insecticides",10,-10,{"$f":"getRiskValue(\"A:A\",H4,J4,L4,\"Single\")","v":10},{"$f":"IF(ISBLANK(sel_Pest_Management_Chemical\\Insecticides),\"\",sel_Pest_Management_Chemical\\Insecticides)","v":"None"}]
["Pest_History_Insects\\Sharpnose_Sharpshooter",3,"More than 5 years ago",5]
["Pest_History_Insects\\Sharpnose_Sharpshooter",4,"Never",0,null,null,null,"Total",{"$f":"SUMIF(I3:I4,\">0\")","v":25},{"$f":"SUMIF(J3:J4,\">0\")","v":0},{"$f":"MAX(ISNSS_MinRiskIndex,SUM(K3:K4))","v":25}]
["Pest_Management_Chemical\\Insecticides",1,"None",10]
["Pest_Management_Chemical\\Insecticides",2,"1 to 2 recommended",5,null,null,null,"High Risk Index",15]
["Pest_Management_Chemical\\Insecticides",3,"3 to 4 recommended|5 or more recommended",-10,null,null,null,"Moderate Risk Index",10]